{"text_format":"1","workbook":"xlsx","n_sheets":8,"sheets":["Общая информация","Ед. поставщик п.4 ч.1","Ед. поставщик п.5 ч.1","Ед.поставщик за искл. п.4,5 ч.1","Состоявшиеся аукционы","Несостоявшиеся аукционы","Иные конкурентные закупки","Настройки"],"not_rendered":{"charts":0,"images":0,"macros":1,"external_links":0,"defined_names":1,"comments":0,"pivot_tables":0},"unopened":[],"bounds":{"document_bytes":16777216,"sheet_cells":100000,"rows_first":2000,"rows_last":500,"rows_between":2000,"halvings":0,"cell_chars":16384,"cell_head_chars":4096},"cells_cut":0,"cells_raw":0,"read":"whole","date_system":"1900"}

{"sheet":"Общая информация","index":0,"n_rows":19,"n_cols":13,"rows_kept":19,"cut":false,"hidden":false,"merged":[[4,7,4,9],[4,12,4,13],[10,12,10,13],[10,9,10,11],[3,0,3,1],[3,4,3,6],[3,7,3,9],[3,12,3,13],[4,0,4,1],[7,0,7,2],[7,3,7,5],[7,6,7,8],[7,12,7,13],[7,9,7,11],[4,4,4,6],[9,0,9,2],[9,3,9,5],[9,6,9,8],[9,12,9,13],[9,9,9,11],[8,0,8,2],[8,3,8,5],[8,6,8,8],[8,12,8,13],[8,9,8,11],[12,9,12,11],[14,0,14,2],[14,3,14,5],[14,6,14,8],[14,12,14,13],[14,9,14,11],[12,0,12,2],[12,3,12,5],[12,6,12,8],[13,9,13,11],[13,12,13,13],[0,0,0,3],[0,4,0,13],[18,0,19,2],[18,3,19,6],[13,0,13,2],[13,3,13,5],[13,6,13,8],[11,12,11,13],[11,9,11,11],[10,0,10,2],[10,3,10,5],[10,6,10,8],[11,6,11,8],[11,0,11,2],[11,3,11,5],[12,12,12,13]]}
["Наименование организации:",null,null,null,"Муниципальное бюджетное общеобразовательное учреждение средняя общеобразовательная школа № 1 муниципального образования Тимашевский район "]
[]
[]
["СГОЗ  (общий)",null,11162598.689999999,null,"п.4 (10% от СГОЗ или 2 000 000)",null,null,2000000,null,null,null,"п.5 (50% СГОЗ)",{"$f":"C4-H4","v":9162598.6899999995}]
["СГОЗ (остаток)",null,{"$f":"C4-G15+J15","v":-3664441.6199999987},null,"п.4 (остаток)",null,null,{"$f":"H4-G12","v":-101486.88999999966},null,null,null,"п.5 (остаток)",{"$f":"M4-G13","v":1783827.7999999989}]
[]
[]
["Способ определения поставщика (подрядчика, исполнителя)",null,null,"Начальная (максимальная) цена контракта",null,null,"Фактическая цена контракта",null,null,"Расторжение контракта по соглашению сторон",null,null,"Экономия "]
["Состоявшиеся аукционы",null,null,{"$f":"'Состоявшиеся аукционы'!G2","v":2009834.73},null,null,{"$f":"'Состоявшиеся аукционы'!Q2","v":1799547.99},null,null,{"$f":"'Состоявшиеся аукционы'!AB2","v":0},null,null,{"$f":"D9-G9","v":210286.74}]
["Несостоявшиеся аукционы",null,null,{"$f":"'Несостоявшиеся аукционы'!G2","v":0},null,null,{"$f":"'Несостоявшиеся аукционы'!Q2","v":0},null,null,{"$f":"'Несостоявшиеся аукционы'!AB2","v":0},null,null,0]
["Иные конкурентные закупки",null,null,{"$f":"'Иные конкурентные закупки'!G2","v":0},null,null,{"$f":"'Иные конкурентные закупки'!Q2","v":0},null,null,{"$f":"'Иные конкурентные закупки'!AB2","v":0},null,null,0]
["Ед. поставщик п.4 ч.1 ",null,null,{"$f":"'Ед. поставщик п.4 ч.1'!H2","v":2101486.8899999997},null,null,{"$f":"D12","v":2101486.8899999997},null,null,{"$f":"'Ед. поставщик п.4 ч.1'!V2","v":32853.520000000004},null,null,0]
["Ед. поставщик п. 5 ч. 1",null,null,{"$f":"'Ед. поставщик п.5 ч.1'!H2","v":7378770.8900000006},null,null,{"$f":"D13","v":7378770.8900000006},null,null,{"$f":"'Ед. поставщик п.5 ч.1'!V2","v":282983.67000000004},null,null,0]
["Ед.поставщик за искл. п.4,5 ч.1",null,null,{"$f":"'Ед.поставщик за искл. п.4,5 ч.1'!G2","v":4022529.0599999996},null,null,{"$f":"D14","v":4022529.0599999996},null,null,{"$f":"'Ед.поставщик за искл. п.4,5 ч.1'!T2","v":159457.32999999999},null,null,0]
["Всего",null,null,{"$f":"SUM(D9:D14)","v":15512621.57},null,null,{"$f":"SUM(G9:G14)","v":15302334.829999998},null,null,{"$f":"SUM(J9:J14)","v":475294.52},null,null,210286.74000000209]
[]
[]
[]
["Всего средств потрачено по заключенным контрактам",null,null,{"$f":"'Ед. поставщик п.4 ч.1'!P2+'Ед. поставщик п.5 ч.1'!P2+'Ед.поставщик за искл. п.4,5 ч.1'!N2+'Состоявшиеся аукционы'!V2+'Несостоявшиеся аукционы'!V2+'Иные конкурентные закупки'!V2","v":13943984.75}]

{"sheet":"Ед. поставщик п.4 ч.1","index":1,"n_rows":124,"n_cols":24,"rows_kept":124,"cut":false,"hidden":false,"merged":[[20,0,32,0],[20,14,32,14],[20,20,32,20],[20,1,32,1],[20,21,32,21],[20,2,32,2],[20,22,32,22],[20,3,32,3],[20,4,32,4],[20,5,32,5],[20,6,32,6],[20,7,32,7],[20,8,32,8],[20,9,32,9],[20,10,32,10],[20,11,32,11],[20,12,32,12],[8,0,19,0],[8,14,19,14],[8,20,19,20],[8,1,19,1],[8,21,19,21],[8,2,19,2],[8,22,19,22],[8,3,19,3],[8,4,19,4],[8,5,19,5],[8,6,19,6],[8,7,19,7],[8,8,19,8],[8,9,19,9],[8,10,19,10],[8,11,19,11],[8,12,19,12],[87,0,88,0],[87,14,88,14],[87,20,88,20],[87,1,88,1],[87,21,88,21],[87,2,88,2],[87,22,88,22],[87,3,88,3],[87,4,88,4],[87,5,88,5],[87,6,88,6],[87,7,88,7],[87,8,88,8],[87,9,88,9],[87,10,88,10],[87,11,88,11],[87,12,88,12],[89,0,90,0],[89,14,90,14],[89,20,90,20],[89,1,90,1],[89,21,90,21],[89,2,90,2],[89,22,90,22],[89,3,90,3],[89,4,90,4],[89,5,90,5],[89,6,90,6],[89,7,90,7],[89,8,90,8],[89,9,90,9],[89,10,90,10],[89,11,90,11],[89,12,90,12],[1,18,1,20],[1,13,1,14],[3,9,3,10],[3,12,3,13],[3,14,3,15],[1,10,1,12],[2,0,2,4],[66,0,67,0],[66,14,67,14],[66,20,67,20],[66,1,67,1],[63,3,65,3],[63,0,65,0],[63,1,65,1],[63,2,65,2],[63,4,65,4],[63,5,65,5],[63,6,65,6],[63,7,65,7],[63,8,65,8],[63,9,65,9],[38,0,50,0],[38,1,50,1],[38,2,50,2],[66,21,67,21],[66,2,67,2],[66,22,67,22],[66,3,67,3],[66,4,67,4],[66,5,67,5],[66,6,67,6],[66,7,67,7],[66,8,67,8],[66,9,67,9],[66,10,67,10],[66,11,67,11],[66,12,67,12],[63,22,65,22],[63,10,65,10],[63,11,65,11],[63,12,65,12],[63,14,65,14],[63,20,65,20],[63,21,65,21],[38,14,50,14],[38,20,50,20],[38,21,50,21],[38,22,50,22],[38,6,50,6],[38,7,50,7],[38,8,50,8],[38,9,50,9],[38,10,50,10],[38,11,50,11],[38,12,50,12],[33,0,37,0],[33,14,37,14],[38,3,50,3],[38,4,50,4],[38,5,50,5],[33,20,37,20],[33,1,37,1],[33,21,37,21],[33,2,37,2],[33,22,37,22],[33,3,37,3],[33,4,37,4],[33,5,37,5],[33,6,37,6],[33,7,37,7],[33,8,37,8],[33,9,37,9],[33,10,37,10],[33,11,37,11],[33,12,37,12],[93,0,98,0],[93,14,98,14],[93,20,98,20],[93,1,98,1],[93,21,98,21],[93,2,98,2],[93,22,98,22],[93,3,98,3],[93,4,98,4],[93,5,98,5],[93,6,98,6],[93,7,98,7],[93,8,98,8],[93,9,98,9],[93,10,98,10],[93,11,98,11],[93,12,98,12],[105,0,106,0],[105,14,106,14],[99,0,104,0],[99,14,104,14],[99,20,104,20],[99,1,104,1],[99,21,104,21],[99,2,104,2],[99,22,104,22],[99,3,104,3],[99,4,104,4],[99,5,104,5],[99,6,104,6],[99,7,104,7],[99,8,104,8],[99,9,104,9],[99,10,104,10],[99,11,104,11],[99,12,104,12],[105,20,106,20],[105,1,106,1],[105,21,106,21],[105,2,106,2],[105,22,106,22],[105,12,106,12],[105,3,106,3],[105,4,106,4],[105,5,106,5],[105,6,106,6],[105,7,106,7],[105,8,106,8],[105,9,106,9],[105,10,106,10],[105,11,106,11]]}
[]
[null,null,null,null,null,null,"Сумма заключенных контрактов",{"$f":"SUM(H9:H9999)","v":2101486.8899999997},null,null,null,null,null,"Сумма средств выплаченных по контрактам",null,{"$f":"SUM(P9:P9999)","v":2067233.37},null,null,"Общая сумма расторжений по контрактам/договорам",null,null,{"$f":"SUM(V9:V9999)","v":32853.520000000004}]
[]
[]
[]
["№ п/п","Наименование муниципальной программы, национального или регионального проекта","Контракт заключен в электронном виде посредством                             АИС \"Портал поставщиков\"   (Да/Нет)","Код бюджетной классификации","№ договора/контракта","Дата заключения договора/контракта","Предмет договора/контракта","Цена договора/контракта","Остаток по контракту","ИНН поставщика (подрядчика, исполнителя) ","Поставщик (подрядчик, исполнитель)","СМП и СОНО                       (да/нет)","Сроки поставки товара (оказания услуги, выполнения работы), согласно договора/контракта; Предоставление документов на оплату Заказчику","Фактическая дата поставки товара (оказания услуги, выполнения работы)","Сроки оплаты согласно договора/контракта","Сумма согласно документа об исполнении контракта заказчиком","Фактическая дата оплаты","Изменение контракта (№, дата)","Изменение контракта (увеличение цены контракта в рублях)","Изменение контракта (уменьшение цены контракта в рублях)","Расторжение контракта (№, дата)","Сумма расторжения в рублях","Примечание"]
["1","2","3","4","5","6","7","8","9","10","11","12","13","14","15","16","17","18","19","20","21","22","23"]
[1,"Муниципальная программа \"Развитие образования\"",null,"902 0113 1310110490 244","№ 1","09.01.2020","Поставка бумаги для офисной техники",20000,{"$f":"H8-P8","v":0},"2353019514","ИП Котляров К.И.",null,"В течение 15 рабочих дней, со дня подписания сторонами контракта","2020-01-10","Не позднее 30 календарных дней с момента подписания акта приема-сдачи и документа на оплату",20000,"2020-01-10",null,null,null,null,null,"Пример"]
[1,null,null,"92500000000000000244",29,"2020-12-25","тенич.обслуж.автоматически установок пожарной сигнализации",24000,{"$f":"IF(X9 = 1, H9 + SUM(S9:S20) - SUM(T9:T20) - SUM(P9:P20) - V9,0)","v":0},null,"ООО СИГНАЛ",null,"В течение 30  дней, со дня подписания сторонами контракта","2021-01-21","Не позднее 30 календарных дней с момента подписания акта приема-сдачи и документа на оплату",2000,"2021-02-05",null,null,null,null,null,null,1]
[null,null,null,null,null,null,null,null,null,null,null,null,null,"2021-02-24",null,2000,"2021-02-24",null,null,null,null,null,null,1]
[null,null,null,null,null,null,null,null,null,null,null,null,null,"2021-04-21",null,2000,"2021-06-18",null,null,null,null,null,null,1]
[null,null,null,null,null,null,null,null,null,null,null,null,null,"2021-03-22",null,2000,"2021-06-18",null,null,null,null,null,null,1]
[null,null,null,null,null,null,null,null,null,null,null,null,null,"2021-05-21",null,2000,"2021-06-18",null,null,null,null,null,null,1]
[null,null,null,null,null,null,null,null,null,null,null,null,null,"2021-06-21",null,2000,"2021-07-08",null,null,null,null,null,null,1]
[null,null,null,null,null,null,null,null,null,null,null,null,null,"2021-07-31",null,2000,"2021-08-04",null,null,null,null,null,null,1]
[null,null,null,null,null,null,null,null,null,null,null,null,null,"2021-08-31",null,2000,"2021-09-01",null,null,null,null,null,null,1]
[null,null,null,null,null,null,null,null,null,null,null,null,null,"2021-09-30",null,2000,"2021-10-22",null,null,null,null,null,null,1]
[null,null,null,null,null,null,null,null,null,null,null,null,null,"2021-10-31",null,2000,"2021-11-09",null,null,null,null,null,null,1]
[null,null,null,null,null,null,null,null,null,null,null,null,null,"2021-11-30",null,2000,"2021-12-01",null,null,null,null,null,null,1]
[null,null,null,null,null,null,null,null,null,null,null,null,null,"2021-12-20",null,2000,"2021-12-20",null,null,null,null,null,null,1]
[2,null,null,"92500000000000000244","34-С","2020-12-25","Техническое обслуживание объектов систе  пожарного мониторинга ПАК Стрелец-мониторинг",36000,{"$f":"IF(X21 = 2, H21 + SUM(S21:S33) - SUM(T21:T33) - SUM(P21:P33) - V21,0)","v":0},null,"ООО Сигнал",null,"В течение 30  дней, со дня подписания сторонами контракта","2021-01-21","Не позднее 30 календарных дней с момента подписания акта приема-сдачи и документа на оплату",3000,"2021-02-05",null,null,null,null,null,null,2]
[null,null,null,null,null,null,null,null,null,null,null,null,null,"2021-02-24",null,3000,"2021-02-24",null,null,null,null,null,null,2]
[null,null,null,null,null,null,null,null,null,null,null,null,null,"2021-03-22",null,3000,"2021-06-18",null,null,null,null,null,null,2]
[null,null,null,null,null,null,null,null,null,null,null,null,null,"2021-04-21",null,3000,"2021-06-18",null,null,null,null,null,null,2]
[null,null,null,null,null,null,null,null,null,null,null,null,null,"2021-05-21",null,3000,"2021-06-18",null,null,null,null,null,null,2]
[null,null,null,null,null,null,null,null,null,null,null,null,null,"2021-06-21",null,3000,"2021-07-08",null,null,null,null,null,null,2]
[null,null,null,null,null,null,null,null,null,null,null,null,null,"2021-07-31",null,3000,"2021-08-04",null,null,null,null,null,null,2]
[null,null,null,null,null,null,null,null,null,null,null,null,null,"2021-08-31",null,3000,"2021-09-01",null,null,null,null,null,null,2]
[null,null,null,null,null,null,null,null,null,null,null,null,null,"2021-09-30",null,3000,"2021-10-09",null,null,null,null,null,null,2]
[null,null,null,null,null,null,null,null,null,null,null,null,null,"2021-10-31",null,3000,"2021-11-09",null,null,null,null,null,null,2]
[null,null,null,null,null,null,null,null,null,null,null,null,null,"2021-11-30",null,3000,"2021-12-01",null,null,null,null,null,null,2]
[null,null,null,null,null,null,null,null,null,null,null,null,null,"2021-12-20",null,3000,"2021-12-20",null,null,null,null,null,null,2]
[null,null,null,null,null,null,null,null,null,null,null,null,null,null,null,null,null,null,null,null,null,null,null,2]
[3,null,null,"92500000000000000244","1/20","2020-12-25","дератизация",23327.88,{"$f":"IF(X34 = 3, H34 + SUM(S34:S38) - SUM(T34:T38) - SUM(P34:P38) - V34,0)","v":0},null,"ООО Дезинфекция",null,"В течение 30  дней, со дня подписания сторонами контракта","2021-03-31","Не позднее 30 календарных дней с момента подписания акта приема-сдачи и документа на оплату",5831.97,"2021-04-10",null,null,null,null,null,null,3]
[null,null,null,null,null,null,null,null,null,null,null,null,null,"2021-06-30",null,5831.97,"2021-07-22",null,null,null,null,null,null,3]
[null,null,null,null,null,null,null,null,null,null,null,null,null,"2021-09-20",null,5831.97,"2021-09-29",null,null,null,null,null,null,3]
[null,null,null,null,null,null,null,null,null,null,null,null,null,"2021-12-15",null,5831.97,"2021-12-21",null,null,null,null,null,null,3]
[null,null,null,null,null,null,null,null,null,null,null,null,null,null,null,null,null,null,null,null,null,null,null,3]
[4,null,null,"92500000000000000244","34000654","2021-01-25","охрана объекта с использованием КТС",27288.84,{"$f":"IF(X39 = 5, H39 + SUM(S39:S51) - SUM(T39:T51) - SUM(P39:P51) - V39,0)","v":0},null,"Федеральное госуд.казеное учреждение \"Управление вневед.охраны войск нац.гвардии РФ по Краснодарскому краю (ФГКУ \"УВО ВНГ России по Краснодарскому раю\"",null,"В течение 30  дней, со дня подписания сторонами контракта","2021-02-16","Не позднее 30 календарных дней с момента подписания акта приема-сдачи и документа на оплату",2274.0700000000002,"2021-02-16",null,null,null,null,null,null,5]
[null,null,null,null,null,null,null,null,null,null,null,null,null,"2021-02-09",null,2274.0700000000002,"2021-02-15",null,null,null,null,null,null,5]
[null,null,null,null,null,null,null,null,null,null,null,null,null,"2021-03-16",null,2274.0700000000002,"2021-03-16",null,null,null,null,null,null,5]
[null,null,null,null,null,null,null,null,null,null,null,null,null,"2021-04-15",null,2274.0700000000002,"2021-06-18",null,null,null,null,null,null,5]
[null,null,null,null,null,null,null,null,null,null,null,null,null,"2021-05-14",null,2274.0700000000002,"2021-06-18",null,null,null,null,null,null,5]
[null,null,null,null,null,null,null,null,null,null,null,null,null,"2021-06-30",null,2274.0700000000002,"2021-07-22",null,null,null,null,null,null,5]
[null,null,null,null,null,null,null,null,null,null,null,null,null,"2021-07-31",null,2274.0700000000002,"2021-08-03",null,null,null,null,null,null,5]
[null,null,null,null,null,null,null,null,null,null,null,null,null,"2021-08-31",null,2274.0700000000002,"2021-09-01",null,null,null,null,null,null,5]
[null,null,null,null,null,null,null,null,null,null,null,null,null,"2021-09-30",null,2274.0700000000002,"2021-10-25",null,null,null,null,null,null,5]
[null,null,null,null,null,null,null,null,null,null,null,null,null,"2021-10-29",null,2274.0700000000002,"2021-11-09",null,null,null,null,null,null,5]
[null,null,null,null,null,null,null,null,null,null,null,null,null,"2021-11-30",null,2274.0700000000002,"2021-12-01",null,null,null,null,null,null,5]
[null,null,null,null,null,null,null,null,null,null,null,null,null,"2021-12-23",null,2274.0700000000002,"2021-12-23",null,null,null,null,null,null,5]
[null,null,null,null,null,null,null,null,null,null,null,null,null,null,null,null,null,null,null,null,null,null,null,5]
[5,null,null,"92500000000000000244","1","2021-01-25","хох нужды",21998,{"$f":"IF(X52 = 6, H52 + SUM(S52:S52) - SUM(T52:T52) - SUM(P52:P52) - V52,0)","v":0},null,"ИП Латышева",null,"В течение 30  дней, со дня подписания сторонами контракта","2021-01-25","Не позднее 30 календарных дней с момента подписания акта приема-сдачи и документа на оплату",21998,"2021-02-10",null,null,null,null,null,null,6]
[6,null,null,"92500000000000000244","3-50-21-0393","2021-02-11","Увеличение мощности",113526.37,{"$f":"IF(X53 = 7, H53 + SUM(S53:S53) - SUM(T53:T53) - SUM(P53:P53) - V53,0)","v":0},null,"АО \"НЭСК-элекросети\"",null,"В течение 30  дней, со дня подписания сторонами контракта","2021-02-11","Не позднее 30 календарных дней с момента подписания акта приема-сдачи и документа на оплату",113526.37,"2021-02-15",null,null,null,null,null,null,7]
[7,null,null,"92500000000000000244","23050354/21","2021-02-20","Право использование программы ЭВМ \"Контур экстерн\"",5000,{"$f":"IF(X54 = 8, H54 + SUM(S54:S54) - SUM(T54:T54) - SUM(P54:P54) - V54,0)","v":0},null,"АО \"Производственная фирма \"СКБ Контур\"",null,"В течение 30  дней, со дня подписания сторонами контракта","2021-02-20","Не позднее 30 календарных дней с момента подписания Заказчиком и Подрядчиком акта приема-сдачи и предоставленного Подрядчиком документа на оплату",5000,"2021-03-03",null,null,null,null,null,null,8]
[8,null,null,"92500000000000000244","23-7341","2021-02-25","аттестаты",36136.5,{"$f":"IF(X55 = 9, H55 + SUM(S55:S55) - SUM(T55:T55) - SUM(P55:P55) - V55,0)","v":0},null,"ООО \"Спецбланк-Москва\"",null,"В течение 30  дней, со дня подписания сторонами контракта","2021-03-29","Не позднее 30 календарных дней с момента подписания акта приема-сдачи и документа на оплату",36136.5,"2021-04-12",null,null,null,null,null,null,9]
[9,null,null,"92500000000000000244","8","2021-02-26","лампы",9378.4,{"$f":"IF(X56 = 10, H56 + SUM(S56:S56) - SUM(T56:T56) - SUM(P56:P56) - V56,0)","v":0},null,"ИП Сакс",null,null,"2021-02-26","Не позднее 30 календарных дней с момента подписания акта приема-сдачи и документа на оплату",9378.4,"2021-03-15",null,null,null,null,null,null,10]
[10,null,null,"92500000000000000244","582","2021-03-09","доводчик дверной,обналичка",25090,{"$f":"IF(X57 = 11, H57 + SUM(S57:S57) - SUM(T57:T57) - SUM(P57:P57) - V57,0)","v":0},null,"ИП Бака",null,null,"2021-03-09","Не позднее 30 календарных дней с момента подписания акта приема-сдачи и документа на оплату",25090,"2021-03-15",null,null,null,null,null,null,11]
[11,null,null,"92500000000000000244","244","2021-04-06","двез.средствари,де",13630,{"$f":"IF(X58 = 12, H58 + SUM(S58:S58) - SUM(T58:T58) - SUM(P58:P58) - V58,0)","v":0},null,"ИП Латышева",null,null,"2021-04-06","Не позднее 30 календарных дней с момента подписания акта приема-сдачи и документа на оплату",13630,"2021-04-23",null,null,null,null,null,null,12]
[12,null,null,"92500000000000000244","1","2021-04-14","журналы,личные карты",3738,{"$f":"IF(X59 = 13, H59 + SUM(S59:S59) - SUM(T59:T59) - SUM(P59:P59) - V59,0)","v":0},null,"ООО \"Краснодарский учколлектор\"",null,null,"2021-06-17","Не позднее 30 календарных дней с момента подписания акта приема-сдачи и документа на оплату",3738,"2021-08-16",null,null,null,null,null,null,13]
[13,null,null,"92500000000000000244","14","2021-04-20","конституция",4785,{"$f":"IF(X60 = 14, H60 + SUM(S60:S60) - SUM(T60:T60) - SUM(P60:P60) - V60,0)","v":0},null,"ООО \"Кубанский библиотечный сервис\"",null,null,"2021-04-20","Не позднее 30 календарных дней с момента подписания акта приема-сдачи и документа на оплату",4785,"2021-05-19",null,null,null,null,null,null,14]
[14,null,null,"92500000000000000244","222","2021-04-26","извещатель пожарный",1000,{"$f":"IF(X61 = 15, H61 + SUM(S61:S61) - SUM(T61:T61) - SUM(P61:P61) - V61,0)","v":0},null,"ООО \"Сигнал\"",null,null,"2021-04-27","Не позднее 30 календарных дней с момента подписания акта приема-сдачи и документа на оплату",1000,"2021-05-19",null,null,null,null,null,null,15]
[15,null,null,"92500000000000000244","АТ00-03987","2021-06-02","аттестаты программа",1000,{"$f":"IF(X62 = 16, H62 + SUM(S62:S62) - SUM(T62:T62) - SUM(P62:P62) - V62,0)","v":0},null,"ООО \"АйТи Мониторинг\"",null,null,"2021-06-02","Не позднее 30 календарных дней с момента подписания акта приема-сдачи и документа на оплату",1000,"2021-06-08",null,null,null,null,null,null,16]
[16,null,null,"92500000000000000244","3406/207","2021-06-01","переодическая печать",9775.48,{"$f":"IF(X63 = 17, H63 + SUM(S63:S63) - SUM(T63:T63) - SUM(P63:P63) - V63,0)","v":0},null,"АО Почта России",null,null,"2021-06-01","предоплата",9775.48,"2021-06-09",null,null,null,null,null,null,17]
[17,null,null,"92500000000000000244",338,"2021-06-15","детская формаАвтогородок",16600,{"$f":"IF(X64 = 18, H64 + SUM(S64:S66) - SUM(T64:T66) - SUM(P64:P66) - V64,0)","v":0},null,"ИП Музуров А.А.",null,null,"2021-07-23","не позднее 30 календарных дней",7250,"2021-07-30",null,null,null,null,null,null,18]
[null,null,null,null,null,null,null,null,null,null,null,null,null,"2021-07-23",null,350,"2021-07-30",null,null,null,null,null,null,18]
[null,null,null,null,null,null,null,null,null,null,null,null,null,"2021-07-23",null,9000,"2021-07-30",null,null,null,null,null,null,18]
[18,null,null,"92500000000000000244","2021.136866","2021-06-15","Автогородок",68000,{"$f":"IF(X67 = 19, H67 + SUM(S67:S68) - SUM(T67:T68) - SUM(P67:P68) - V67,0)","v":0},null,"ИП Музуров А.А.",null,null,"2021-07-23","не позднее 30 календарных дней",68000,"2021-07-30",null,null,null,null,null,null,19]
[null,null,null,null,null,null,null,null,null,null,null,null,null,null,null,null,null,null,null,null,null,null,null,19]
[19,null,null,"92500000000000000244","18","2021-05-27","принтер 2шт ЕГЭ",56000,{"$f":"IF(X69 = 20, H69 + SUM(S69:S69) - SUM(T69:T69) - SUM(P69:P69) - V69,0)","v":0},null,"ИП Титаренко И.М",null,null,"2021-05-27","не позднее 30 календарных дней",56000,"2021-05-30",null,null,null,null,null,null,20]
[20,null,null,"92500000000000000244","107","2021-06-01","хознужды",21610,{"$f":"IF(X70 = 21, H70 + SUM(S70:S70) - SUM(T70:T70) - SUM(P70:P70) - V70,0)","v":0},null,"ИП Латышева Н.П",null,null,"2021-06-01","не позднее 30 календарных дней",21610,"2021-06-08",null,null,null,null,null,null,21]
[21,null,null,"92500000000000000244",15,"2021-07-01","экскурсионные услуги",25200,{"$f":"IF(X71 = 22, H71 + SUM(S71:S71) - SUM(T71:T71) - SUM(P71:P71) - V71,0)","v":0},null,"МРО провославный приход храма Вознесения Господня",null,null,"2021-07-07","не позднее 30 календарных дней",25200,"2021-07-09",null,null,null,null,null,null,22]
[22,null,null,"92500000000000000244",734,"2021-07-15","лабораторные исследования воды",3832.55,{"$f":"IF(X72 = 23, H72 + SUM(S72:S72) - SUM(T72:T72) - SUM(P72:P72) - V72,0)","v":0},null,"ФБУЗ \"Цнтр гигиены и эпидимиологии в Краснодарском крае\"",null,null,"2021-07-15","не позднее 30 календарных дней",3832.55,"2021-08-16",null,null,null,null,null,null,23]
[23,null,null,"92500000000000000244","321-21/24","2021-08-11","Оценка аренды Райпо",8000,{"$f":"IF(X73 = 24, H73 + SUM(S73:S73) - SUM(T73:T73) - SUM(P73:P73) - V73,0)","v":1000},null,"Союз \"Тимашевская Торгово-промышленная палата\"",null,null,"2021-08-26","не позднее 30 календарных дней",7000,"2021-09-06",null,null,null,null,null,null,24]
[24,null,null,"92500000000000000244","321-21/24","2021-06-23","Оценка аренды Техникум",8000,{"$f":"IF(X74 = 25, H74 + SUM(S74:S74) - SUM(T74:T74) - SUM(P74:P74) - V74,0)","v":0},null,"Союз \"Тимашевская Торгово-промышленная палата\"",null,null,"2021-07-26","не позднее 30 календарных дней",8000,"2021-08-06",null,null,null,null,null,null,25]
[25,null,null,"92500000000000000244",20,"2021-06-24","таблички ",20000,{"$f":"IF(X75 = 26, H75 + SUM(S75:S75) - SUM(T75:T75) - SUM(P75:P75) - V75,0)","v":0},null,"ИП Барам В.Н.",null,null,"2021-06-24","не позднее 30 календарных дней",20000,"2021-07-01",null,null,null,null,null,null,26]
[26,null,null,"92500000000000000244","SYUT-18459","2021-06-24","Ларь морозильный",33645,{"$f":"IF(X76 = 27, H76 + SUM(S76:S76) - SUM(T76:T76) - SUM(P76:P76) - V76,0)","v":0},null,"ООО\"Сервис-ЮГ-ККМ\"",null,null,"2021-06-24","не позднее 30 календарных дней",33645,"2021-07-01",null,null,null,null,null,null,27]
[27,null,null,"92500000000000000244",21,"2011-06-28","канцтовары",25025,{"$f":"IF(X77 = 28, H77 + SUM(S77:S77) - SUM(T77:T77) - SUM(P77:P77) - V77,0)","v":0},null,"ИПИ Кислинская Ю.Н",null,null,"2011-06-28","не позднее 30 календарных дней",25025,"2021-07-01",null,null,null,null,null,null,28]
[28,null,null,"92500000000000000244",26,"2021-08-05","экскурсионные услуги Новороссийск",10640,{"$f":"IF(X78 = 29, H78 + SUM(S78:S78) - SUM(T78:T78) - SUM(P78:P78) - V78,0)","v":0},null,"МРО Провославныйприход храма Вознесения Господне.КК Ейской епархии .",null,null,"2021-08-11","не позднее 30 календарных дней",10640,"2021-08-17",null,null,null,null,null,null,29]
[29,null,null,"92500000000000000244",15,"2021-08-04","Экскурсионное обслуж.музей",2090,{"$f":"IF(X79 = 30, H79 + SUM(S79:S79) - SUM(T79:T79) - SUM(P79:P79) - V79,0)","v":0},null,"МинфинКК( ГБУК КК \"НИМЗ\"",null,null,"2021-08-11","не позднее 30 календарных дней",2090,"2021-08-17",null,null,null,null,null,null,30]
[30,null,null,"92500000000000000244",416,"2021-09-09","ремонт кровли",50000,{"$f":"IF(X80 = 31, H80 + SUM(S80:S80) - SUM(T80:T80) - SUM(P80:P80) - V80,0)","v":0},null,"ООО \"Сигнал\"",null,null,"2021-09-14","не позднее 30 календарных дней",50000,"2021-09-22",null,null,null,null,null,null,31]
[31,null,null,"92500000000000000244",352,"2021-09-09","лабораторные электрические испытания",20000,{"$f":"IF(X81 = 32, H81 + SUM(S81:S81) - SUM(T81:T81) - SUM(P81:P81) - V81,0)","v":0},null,"ООО \"Сигнал\"",null,null,"2021-09-09","не позднее 30 календарных дней",20000,"2021-09-16",null,null,null,null,null,null,32]
[32,null,null,"92500000000000000244",602,"2021-09-16","Изделия их ПВХ,дверь шпонированная",93373.99,{"$f":"IF(X82 = 33, H82 + SUM(S82:S82) - SUM(T82:T82) - SUM(P82:P82) - V82,0)","v":300},null,"ИП Бака И.Н",null,null,"2021-09-16","не позднее 30 календарных дней",93073.99,"2021-09-22",null,null,null,null,null,null,33]
[33,null,null,"92500000000000000244",203,"2021-09-17","хознужды",34861,{"$f":"IF(X83 = 34, H83 + SUM(S83:S83) - SUM(T83:T83) - SUM(P83:P83) - V83,0)","v":0},null,"ИП Латышева",null,null,"2021-10-28","не позднее 30 календарных дней",34861,"2021-11-08",null,null,null,null,null,null,34]
[34,null,null,"92500000000000000244",36,"2021-09-28","накопитель",8200,{"$f":"IF(X84 = 35, H84 + SUM(S84:S84) - SUM(T84:T84) - SUM(P84:P84) - V84,0)","v":0},null,"ИП Даценко",null,null,"2021-09-28","не позднее 30 календарных дней",8200,"2021-09-30",null,null,null,null,null,null,35]
[35,null,null,"92500000000000000244","СП-Т-13/21","2021-10-05","учеба ФЗ44",4000,{"$f":"IF(X85 = 36, H85 + SUM(S85:S85) - SUM(T85:T85) - SUM(P85:P85) - V85,0)","v":0},null,"ООО\"АСМ-Партнер\"",null,null,"2021-10-06","не позднее 30 календарных дней",4000,"2021-10-12",null,null,null,null,null,null,36]
[36,null,null,"92500000000000000244",54,"2021-10-19","опрессовка",19000,{"$f":"IF(X86 = 37, H86 + SUM(S86:S86) - SUM(T86:T86) - SUM(P86:P86) - V86,0)","v":0},null,"АО \"АТЭК\"",null,null,"2021-10-19","не позднее 30 календарных дней",19000,"2021-11-12",null,null,null,null,null,null,37]
[37,null,null,"92500000000000000244",39,"2021-10-28","лампы",12960,{"$f":"IF(X87 = 38, H87 + SUM(S87:S87) - SUM(T87:T87) - SUM(P87:P87) - V87,0)","v":0},null,"ИП Сакс",null,null,null,"не позднее 30 календарных дней",12960,null,null,null,null,null,null,null,38]
[38,null,null,"92500000000000000244",52,"2020-12-25","за тех.обслуживание узла учета",null,{"$f":"IF(X88 = 39, H88 + SUM(S88:S89) - SUM(T88:T89) - SUM(P88:P89) - V88,0)","v":0},"235301271520",null,null,null,null,"не позднее 30 кален.дн",null,null,null,null,null,null,null,null,39]
[null,null,null,null,null,null,null,null,null,null,null,null,null,null,null,null,null,null,null,null,null,null,null,39]
[39,null,null,"92500000000000000244","07/14/52-п/4","2020-12-24",null,null,{"$f":"IF(X90 = 40, H90 + SUM(S90:S91) - SUM(T90:T91) - SUM(P90:P91) - V90,0)","v":0},null,"ФФГУП \"Охрана\"",null,null,null,"не прзднее 30 кален жн",null,null,null,null,null,null,null,null,40]
[null,null,null,null,null,null,null,null,null,null,null,null,null,null,null,null,null,null,null,null,null,null,null,40]
[40,null,null,"92500000000000000244",350,"2021-07-19","за ремонт автоматической пожарной сигнализации",60000,{"$f":"IF(X92 = 41, H92 + SUM(S92:S92) - SUM(T92:T92) - SUM(P92:P92) - V92,0)","v":0},"2353002302","ООО \"Сигнал\"",null,null,"2021-09-03","не позднее 30 календарных дней",60000,"2021-09-20",null,null,null,null,null,null,41]
[41,null,null,"92500000000000000244","10-2021","2021-10-27","Автомат макет",28250,{"$f":"IF(X93 = 42, H93 + SUM(S93:S93) - SUM(T93:T93) - SUM(P93:P93) - V93,0)","v":100},null,"ИП Данилкин С.Ю.",null,null,"2021-12-07","не позднее 30 календарных дней",28150,"2021-12-23",null,null,null,null,null,null,42]
[42,null,null,"92500000000000000244",43,"2021-11-01","ООО \"Тимашевское ПРТ райпо\"",269800,{"$f":"IF(X94 = 43, H94 + SUM(S94:S99) - SUM(T94:T99) - SUM(P94:P99) - V94,0)","v":0},null,"Услуга питания 19 руб ноябрь-декабрь",null,null,"2021-11-01","не позднее 30 календарных дней",38646,"2021-12-01",null,null,null,null,null,null,43]
[null,null,null,null,null,null,null,null,null,null,null,null,null,"2021-11-26",null,76209,"2021-12-13",null,null,null,null,null,null,43]
[null,null,null,null,null,null,null,null,null,null,null,null,null,"2021-11-30",null,14516,"2021-12-13",null,null,null,null,null,null,43]
[null,null,null,null,null,null,null,null,null,null,null,null,null,"2021-12-10",null,55347,"2021-12-29",null,null,null,null,null,null,43]
[null,null,null,null,null,null,null,null,null,null,null,null,null,"2021-12-24",null,71022,"2021-12-29",null,null,null,null,null,null,43]
[null,null,null,null,null,null,null,null,null,null,null,null,null,"2021-12-28",null,14060,"2021-12-29",null,null,null,null,null,null,43]
[43,null,null,"92500000000000000244",44,"2021-11-01","ООО \"Тимашевское ПРТ райпо\"",449961.46,{"$f":"IF(X100 = 44, H100 + SUM(S100:S105) - SUM(T100:T105) - SUM(P100:P105) - V100,0)","v":7.6397554948925972E-11},null,"Питание 1-4 класс ноябрь",null,null,"2021-11-12","не позднее 30 календарных дней",7647.18,"2021-12-01",null,null,null,"09.12.2021",23309.52,null,44]
[null,null,null,null,null,null,null,null,null,null,null,null,null,"2021-11-12",null,119803.26,"2021-12-01",null,null,null,null,null,null,44]
[null,null,null,null,null,null,null,null,null,null,null,null,null,"2021-11-26",null,15080.05,"2021-12-06",null,null,null,null,null,null,44]
[null,null,null,null,null,null,null,null,null,null,null,null,null,"2021-12-06",null,236249.21,"2021-11-26",null,null,null,null,null,null,44]
[null,null,null,null,null,null,null,null,null,null,null,null,null,"2021-12-09",null,44999.85,"2021-11-30",null,null,null,null,null,null,44]
[null,null,null,null,null,null,null,null,null,null,null,null,null,"2021-11-30",null,2872.39,"2021-12-09",null,null,null,null,null,null,44]
[44,null,null,"92500000000000000244",42,"2021-11-01","ООО \"Тимашевское ПРТ райпо\"",39680,{"$f":"IF(X106 = 45, H106 + SUM(S106:S107) - SUM(T106:T107) - SUM(P106:P107) - V106,0)","v":0},null,"питание ОВЗ",null,null,"2021-11-30","не позднее 30 календарных дней",14296,"2021-12-20",null,null,null,"29.12.2021",9544,null,45]
[null,null,null,null,null,null,null,null,null,null,null,null,null,"2021-12-29",null,15840,"2021-12-29",null,null,null,null,null,null,45]
[45,null,null,"92500000000000000244",18.04830917874396,"2021-11-15","АО\"Почта России\"",10473.09,{"$f":"IF(X108 = 46, H108 + SUM(S108:S108) - SUM(T108:T108) - SUM(P108:P108) - V108,0)","v":0},null,"подписка",null,null,"2021-11-15","не позднее 30 календарных дней",10473.09,"2021-11-25",null,null,null,null,null,null,46]
[46,null,null,"92500000000000000244","А-114877","2021-11-22","ООО \"Айдеко\"",30475,{"$f":"IF(X109 = 47, H109 + SUM(S109:S109) - SUM(T109:T109) - SUM(P109:P109) - V109,0)","v":0},null,"шлюз безопасности программа",null,null,"2021-12-08","не позднее 30 календарных дней",30475,"2021-12-14",null,null,null,null,null,null,47]
[47,null,null,"92500000000000000244","2021.288560","2021-11-23","ООО \"ТД -Логистика\"",64400,{"$f":"IF(X110 = 48, H110 + SUM(S110:S110) - SUM(T110:T110) - SUM(P110:P110) - V110,0)","v":0},null,"плита электрическая",null,null,"2021-12-06","не позднее 30 календарных дней",64400,"2021-12-14",null,null,null,null,null,null,48]
[48,null,null,"92500000000000000244",45,"2021-12-03","ООО \"Тит-мебель\"",43520,{"$f":"IF(X111 = 49, H111 + SUM(S111:S111) - SUM(T111:T111) - SUM(P111:P111) - V111,0)","v":0},null,"стулья",null,null,"2021-12-03","не позднее 30 календарных дней",43520,"2021-12-09",null,null,null,null,null,null,49]
[49,null,null,"92500000000000000244",41,"2021-12-03","ИП Даценко",17.510000000000002,{"$f":"IF(X112 = 50, H112 + SUM(S112:S112) - SUM(T112:T112) - SUM(P112:P112) - V112,0)","v":0},null,"СД диск",null,null,"2021-12-03","не позднее 30 календарных дней",17.510000000000002,"2021-12-09",null,null,null,null,null,null,50]
[50,null,null,"92500000000000000244","31Ю/21-61/1","2021-12-03","ГБУ Краснодарского края \"Краевая техничсикая инвентаризация -Краевое БТИ\"",17900.169999999998,{"$f":"IF(X113 = 51, H113 + SUM(S113:S113) - SUM(T113:T113) - SUM(P113:P113) - V113,0)","v":0},null,"тех заключение на здание",null,null,"2021-12-16","не позднее 30 календарных дней",17900.169999999998,"2021-12-17",null,null,null,null,null,null,51]
[51,null,null,"92500000000000000244","М7","07.12.201","ИП Тюменцева Т.А",13050,{"$f":"IF(X114 = 52, H114 + SUM(S114:S114) - SUM(T114:T114) - SUM(P114:P114) - V114,0)","v":0},null,"мячи ПВХ",null,null,"2021-12-07","не позднее 30 календарных дней",13050,"2021-12-09",null,null,null,null,null,null,52]
[52,null,null,"92500000000000000244","СОУТ 278/6Е-21","2021-12-07","ГК.\"АТОН\"",17600,{"$f":"IF(X115 = 53, H115 + SUM(S115:S115) - SUM(T115:T115) - SUM(P115:P115) - V115,0)","v":0},null,"спецоценка условий труда",null,null,"2021-12-07","не позднее 30 календарных дней",17600,"2021-12-22",null,null,null,null,null,null,53]
[53,null,null,"92500000000000000244",null,"2021-12-10","ООО \"Тит-мебель\"",27300,{"$f":"IF(X116 = 54, H116 + SUM(S116:S116) - SUM(T116:T116) - SUM(P116:P116) - V116,0)","v":0},null,"ресепшн",null,null,"2021-12-14","не позднее 30 календарных дней",27300,"2011-12-15",null,null,null,null,null,null,54]
[54,null,null,"92500000000000000244",302,"2021-12-10","ИП Латышев Е.А",19026,{"$f":"IF(X117 = 55, H117 + SUM(S117:S117) - SUM(T117:T117) - SUM(P117:P117) - V117,0)","v":0},null,"хознуды",null,null,"2021-12-10","не позднее 30 календарных дней",19026,"2021-12-17",null,null,null,null,null,null,55]
[55,null,null,"92500000000000000244","51","2021-12-16","ИПБурцев А.В (Дети Юга)",67880,{"$f":"IF(X118 = 56, H118 + SUM(S118:S118) - SUM(T118:T118) - SUM(P118:P118) - V118,0)","v":0},null,"стенка швецкая, тренажер",null,null,"2021-12-17","не позднее 30 календарных дней",67880,"2011-12-22",null,null,null,null,null,null,56]
[56,null,null,"92500000000000000244","52","2021-12-17","ИП Сакс",35441.65,{"$f":"IF(X119 = 57, H119 + SUM(S119:S119) - SUM(T119:T119) - SUM(P119:P119) - V119,0)","v":0},null,"хознужды",null,null,"2021-12-17","не позднее 30 календарных дней",35441.65,"2021-12-22",null,null,null,null,null,null,57]
[57,null,null,"92500000000000000244","333-ПУ","2021-12-17","ИП Казерова",6000,{"$f":"IF(X120 = 58, H120 + SUM(S120:S120) - SUM(T120:T120) - SUM(P120:P120) - V120,0)","v":0},null,"Оказание информационно-консультационных услуг по заполнению и подаче заявки о постановке объекта, оказывающего негативное воздействие на окружающую среду",null,null,"2021-12-17","не позднее 30 календарных дней",6000,"2021-12-24",null,null,null,null,null,null,58]
[58,null,null,"92500000000000000244",763,"2021-12-07","Союз торгово промышленная палата",4000,{"$f":"IF(X121 = 59, H121 + SUM(S121:S121) - SUM(T121:T121) - SUM(P121:P121) - V121,0)","v":0},null,"экспертиза",null,null,"2021-12-07","не позднее 30 календарных дней",4000,"24.12.201",null,null,null,null,null,null,59]
[59,null,null,"92500000000000000244",611,null,null,null,{"$f":"IF(X122 = 60, H122 + SUM(S122:S122) - SUM(T122:T122) - SUM(P122:P122) - V122,0)","v":0},null,null,null,null,null,null,null,null,null,null,null,null,null,null,60]
[60,null,null,"92500000000000000244",null,null,null,null,{"$f":"IF(X123 = 61, H123 + SUM(S123:S123) - SUM(T123:T123) - SUM(P123:P123) - V123,0)","v":0},null,null,null,null,null,null,null,null,null,null,null,null,null,null,61]
[null,null,null,null,null,null,null,null,null,null,null,null,null,null,null,null,null,null,null,null,null,null,null,62]

{"sheet":"Ед. поставщик п.5 ч.1","index":2,"n_rows":216,"n_cols":24,"rows_kept":216,"cut":false,"hidden":false,"merged":[[147,22,151,22],[147,3,151,3],[147,4,151,4],[147,5,151,5],[147,6,151,6],[147,7,151,7],[147,8,151,8],[147,9,151,9],[147,10,151,10],[147,11,151,11],[147,12,151,12],[171,0,184,0],[171,14,184,14],[171,20,184,20],[171,1,184,1],[171,21,184,21],[171,2,184,2],[61,5,66,5],[47,22,60,22],[47,3,60,3],[47,4,60,4],[47,5,60,5],[47,6,60,6],[47,7,60,7],[47,8,60,8],[47,9,60,9],[47,10,60,10],[47,11,60,11],[47,12,60,12],[147,0,151,0],[147,14,151,14],[147,20,151,20],[147,1,151,1],[147,21,151,21],[147,2,151,2],[171,22,184,22],[171,3,184,3],[171,4,184,4],[171,5,184,5],[171,6,184,6],[171,7,184,7],[171,8,184,8],[171,9,184,9],[171,10,184,10],[171,11,184,11],[171,12,184,12],[61,22,66,22],[67,0,78,0],[67,14,78,14],[67,20,78,20],[67,1,78,1],[67,21,78,21],[67,2,78,2],[67,22,78,22],[67,9,78,9],[67,10,78,10],[67,11,78,11],[67,12,78,12],[61,3,66,3],[61,4,66,4],[61,6,66,6],[61,7,66,7],[61,8,66,8],[61,9,66,9],[61,10,66,10],[61,11,66,11],[61,12,66,12],[61,0,66,0],[61,14,66,14],[32,22,43,22],[32,3,43,3],[32,4,43,4],[32,5,43,5],[32,6,43,6],[32,7,43,7],[32,8,43,8],[32,9,43,9],[32,10,43,10],[32,11,43,11],[32,12,43,12],[32,0,43,0],[32,14,43,14],[32,20,43,20],[32,1,43,1],[32,21,43,21],[32,2,43,2],[79,0,95,0],[79,14,95,14],[79,20,95,20],[79,1,95,1],[79,21,95,21],[79,2,95,2],[67,3,78,3],[67,4,78,4],[67,5,78,5],[67,6,78,6],[67,7,78,7],[67,8,78,8],[61,20,66,20],[61,1,66,1],[61,21,66,21],[61,2,66,2],[47,0,60,0],[47,14,60,14],[79,22,95,22],[79,3,95,3],[79,4,95,4],[79,5,95,5],[79,6,95,6],[79,7,95,7],[79,8,95,8],[79,9,95,9],[79,10,95,10],[79,11,95,11],[79,12,95,12],[154,22,155,22],[154,3,155,3],[154,4,155,4],[154,5,155,5],[154,6,155,6],[154,7,155,7],[154,8,155,8],[154,9,155,9],[154,10,155,10],[154,11,155,11],[154,12,155,12],[156,0,157,0],[156,14,157,14],[156,20,157,20],[156,1,157,1],[156,21,157,21],[156,2,157,2],[156,22,157,22],[156,3,157,3],[156,4,157,4],[156,5,157,5],[156,6,157,6],[156,7,157,7],[156,8,157,8],[156,9,157,9],[156,10,157,10],[156,11,157,11],[154,0,155,0],[158,22,159,22],[158,4,159,4],[158,5,159,5],[158,6,159,6],[158,7,159,7],[158,8,159,8],[158,9,159,9],[158,10,159,10],[158,11,159,11],[158,12,159,12],[158,0,159,0],[158,14,159,14],[158,20,159,20],[158,1,159,1],[158,21,159,21],[158,2,159,2],[158,3,159,3],[156,12,157,12],[154,14,155,14],[154,20,155,20],[154,1,155,1],[154,21,155,21],[154,2,155,2],[44,22,46,22],[44,3,46,3],[44,4,46,4],[44,5,46,5],[44,6,46,6],[44,7,46,7],[44,8,46,8],[44,9,46,9],[44,10,46,10],[44,11,46,11],[44,12,46,12],[102,11,107,11],[102,12,107,12],[102,21,107,21],[44,0,46,0],[44,14,46,14],[44,20,46,20],[44,1,46,1],[44,21,46,21],[44,2,46,2],[102,2,107,2],[47,20,60,20],[47,1,60,1],[47,21,60,21],[47,2,60,2],[112,9,117,9],[112,10,117,10],[112,11,117,11],[112,12,117,12],[96,22,101,22],[96,3,101,3],[96,4,101,4],[96,5,101,5],[96,6,101,6],[96,7,101,7],[96,8,101,8],[96,9,101,9],[96,10,101,10],[96,11,101,11],[96,12,101,12],[102,22,107,22],[102,3,107,3],[102,4,107,4],[102,5,107,5],[102,6,107,6],[102,7,107,7],[102,8,107,8],[102,9,107,9],[102,10,107,10],[141,22,143,22],[129,20,136,20],[129,1,136,1],[129,21,136,21],[129,2,136,2],[129,22,136,22],[129,3,136,3],[129,4,136,4],[129,5,136,5],[129,6,136,6],[129,7,136,7],[129,8,136,8],[129,9,136,9],[129,10,136,10],[129,11,136,11],[129,12,136,12],[138,22,139,22],[141,9,143,9],[138,10,139,10],[138,11,139,11],[138,12,139,12],[141,21,143,21],[138,21,139,21],[112,21,117,21],[112,2,117,2],[96,21,101,21],[96,2,101,2],[112,22,117,22],[112,3,117,3],[112,4,117,4],[112,5,117,5],[112,6,117,6],[112,7,117,7],[112,8,117,8],[108,22,111,22],[108,3,111,3],[108,4,111,4],[108,5,111,5],[108,6,111,6],[108,7,111,7],[108,8,111,8],[108,9,111,9],[108,10,111,10],[108,11,111,11],[108,12,111,12],[108,14,111,14],[108,20,111,20],[121,22,126,22],[121,0,126,0],[121,1,126,1],[121,9,126,9],[121,10,126,10],[121,11,126,11],[121,12,126,12],[121,14,126,14],[121,20,126,20],[121,21,126,21],[121,3,126,3],[121,4,126,4],[121,5,126,5],[121,6,126,6],[121,7,126,7],[118,22,120,22],[118,3,120,3],[118,4,120,4],[118,5,120,5],[118,6,120,6],[118,7,120,7],[118,8,120,8],[118,9,120,9],[118,10,120,10],[118,11,120,11],[118,12,120,12],[118,14,120,14],[118,20,120,20],[118,21,120,21],[108,21,111,21],[138,14,139,14],[1,18,1,20],[1,5,1,6],[1,13,1,14],[121,2,126,2],[121,8,126,8],[102,0,107,0],[102,14,107,14],[102,20,107,20],[102,1,107,1],[138,5,139,5],[138,6,139,6],[112,1,117,1],[96,0,101,0],[96,14,101,14],[96,20,101,20],[96,1,101,1],[112,20,117,20],[112,0,117,0],[112,14,117,14],[138,7,139,7],[138,8,139,8],[138,9,139,9],[118,0,120,0],[118,1,120,1],[118,2,120,2],[138,0,139,0],[141,10,143,10],[141,11,143,11],[141,0,143,0],[141,14,143,14],[141,20,143,20],[141,1,143,1],[141,2,143,2],[141,12,143,12],[141,3,143,3],[141,4,143,4],[141,5,143,5],[141,6,143,6],[141,7,143,7],[141,8,143,8],[138,20,139,20],[138,1,139,1],[138,2,139,2],[108,0,111,0],[108,1,111,1],[108,2,111,2],[129,0,136,0],[129,14,136,14],[138,3,139,3],[138,4,139,4],[152,22,153,22],[152,3,153,3],[152,4,153,4],[152,5,153,5],[152,6,153,6],[152,7,153,7],[152,8,153,8],[152,9,153,9],[152,10,153,10],[152,11,153,11],[152,12,153,12],[152,0,153,0],[152,14,153,14],[152,20,153,20],[152,1,153,1],[152,21,153,21],[152,2,153,2],[160,0,166,0],[160,14,166,14],[160,20,166,20],[160,1,166,1],[160,21,166,21],[160,2,166,2],[160,22,166,22],[160,3,166,3],[160,4,166,4],[160,5,166,5],[160,6,166,6],[160,7,166,7],[160,8,166,8],[160,9,166,9],[160,10,166,10],[160,11,166,11],[160,12,166,12],[8,0,19,0],[8,14,19,14],[8,20,19,20],[8,1,19,1],[8,21,19,21],[8,2,19,2],[8,22,19,22],[8,3,19,3],[8,4,19,4],[8,5,19,5],[8,6,19,6],[8,7,19,7],[8,8,19,8],[8,9,19,9],[8,10,19,10],[8,11,19,11],[8,12,19,12],[20,12,31,12],[20,0,31,0],[20,14,31,14],[20,20,31,20],[20,1,31,1],[20,21,31,21],[20,2,31,2],[20,22,31,22],[20,3,31,3],[20,4,31,4],[20,5,31,5],[20,6,31,6],[20,7,31,7],[20,8,31,8],[20,9,31,9],[20,10,31,10],[20,11,31,11],[189,0,192,0],[189,14,192,14],[189,20,192,20],[189,1,192,1],[189,21,192,21],[189,2,192,2],[189,22,192,22],[189,3,192,3],[189,4,192,4],[189,5,192,5],[189,6,192,6],[189,7,192,7],[189,8,192,8],[189,9,192,9],[189,10,192,10],[189,11,192,11],[189,12,192,12],[185,0,188,0],[185,14,188,14],[185,20,188,20],[185,1,188,1],[185,21,188,21],[185,2,188,2],[185,22,188,22],[185,3,188,3],[185,4,188,4],[185,5,188,5],[185,6,188,6],[185,7,188,7],[185,8,188,8],[185,9,188,9],[185,10,188,10],[185,11,188,11],[185,12,188,12],[199,0,204,0],[199,14,204,14],[199,20,204,20],[199,1,204,1],[199,21,204,21],[199,2,204,2],[199,22,204,22],[199,3,204,3],[199,4,204,4],[199,5,204,5],[199,6,204,6],[199,7,204,7],[199,8,204,8],[199,9,204,9],[199,10,204,10],[199,11,204,11],[199,12,204,12]]}
[]
[null,null,null,null,null,"Сумма заключенных контрактов",null,{"$f":"SUM(H9:H9999)","v":7378770.8900000006},null,null,null,null,null,"Сумма средств выплаченных по контрактам",null,{"$f":"SUM(P9:P9999)","v":6686015.2500000009},null,null,"Общая сумма расторжений по контрактам/договорам",null,null,{"$f":"SUM(V9:V9999)","v":282983.67000000004}]
[]
[]
[]
["№ п/п","Наименование муниципальной программы, национального или регионального проекта","Контракт заключен в электронном виде посредством                             АИС \"Портал поставщиков\"   (Да/Нет)","Код бюджетной классификации","№ договора/контракта","Дата заключения договора/контракта","Предмет договора/контракта","Цена договора/контракта","Остаток по контракту","ИНН поставщика (подрядчика, исполнителя) ","Поставщик (подрядчик, исполнитель)","СМП и СОНО                       (Да/Нет)","Сроки поставки товара (оказания услуги, выполнения работы), согласно контракта; Предоставление документов на оплату Закзчику","Фактическая дата поставки товара (оказания услуги, выполнения работы) и (или) предоставление документов на оплату и подписание документов о приемке","Сроки оплаты согласно договора/контракта","Сумма согласно документа об исполнении контракта заказчиком","Фактическая дата оплаты","Изменение контракта (№, дата)","Изменение контракта (увеличение цены контракта в рублях)","Изменение контракта (уменьшение цены контракта в рублях)","Расторжение контракта (№, дата)","Сумма расторжения","Примечание"]
["1","2","3","4","5","6","7","8","9","10","11","12","13","14","15","16","17","18","19","20","21","22","23"]
["1","Муниципальная программа \"Развитие образования\"",null,"902 0113 1310110490 244","№ 1","2020-01-09","Поставка бумаги для офисной техники",20000,0,2353019514,"ИП Котляров К.И.",null,"В течение 15 рабочих дней, со дня подписания сторонами контракта","2020-01-10","Не позднее 30 календарных дней с момента подписания Заказчиком и Подрядчиком акта приема-сдачи и предоставленного Подрядчиком документа на оплату",20000,"2020-01-10",null,null,null,null,null,"Пример"]
[1,null,null,"92500000000000000244","23","2020-12-24","техическое обслуживания технических средств охраны объекта(тревожная кнопка)",5337.6,{"$f":"IF(X9 = 4, H9 + SUM(S9:S20) - SUM(T9:T20) - SUM(P9:P20) - V9,0)","v":-9.0949470177292824E-13},null,"ФГУП \"Охрана\"Федеральной службы войск национальной гвардии Российской Федерации",null,"ежедневно","2021-01-31","Не позднее 30 календарных дней с момента подписания Заказчиком и Подрядчиком акта приема-сдачи и предоставленного Подрядчиком документа на оплату",444.8,"2021-02-08",null,null,null,null,null,null,4]
[null,null,null,null,null,null,null,null,null,null,null,null,null,"2021-02-28",null,444.8,"2021-03-04",null,null,null,null,null,null,4]
[null,null,null,null,null,null,null,null,null,null,null,null,null,"2021-03-31",null,444.8,"2021-04-08",null,null,null,null,null,null,4]
[null,null,null,null,null,null,null,null,null,null,null,null,null,"2021-04-30",null,444.8,"2021-05-12",null,null,null,null,null,null,4]
[null,null,null,null,null,null,null,null,null,null,null,null,null,"2021-05-31",null,444.8,"2021-06-08",null,null,null,null,null,null,4]
[null,null,null,null,null,null,null,null,null,null,null,null,null,"2021-06-30",null,444.8,"2021-08-13",null,null,null,null,null,null,4]
[null,null,null,null,null,null,null,null,null,null,null,null,null,"2021-07-31",null,444.8,"2021-08-04",null,null,null,null,null,null,4]
[null,null,null,null,null,null,null,null,null,null,null,null,null,"2021-08-31",null,444.8,"2021-09-13",null,null,null,null,null,null,4]
[null,null,null,null,null,null,null,null,null,null,null,null,null,"2021-09-30",null,444.8,"2021-10-15",null,null,null,null,null,null,4]
[null,null,null,null,null,null,null,null,null,null,null,null,null,"2021-10-31",null,444.8,"2021-11-09",null,null,null,null,null,null,4]
[null,null,null,null,null,null,null,null,null,null,null,null,null,"2021-11-30",null,444.8,"2021-12-01",null,null,null,null,null,null,4]
[null,null,null,null,null,null,null,null,null,null,null,null,null,null,null,444.8,null,null,null,null,null,null,null,4]
[2,null,null,"92500000000000000244","23","2020-12-25","сервисное тех.обслуживание теплосчетчиков",31000,{"$f":"IF(X21 = 5, H21 + SUM(S21:S32) - SUM(T21:T32) - SUM(P21:P32) - V21,0)","v":0},null,"ИП Дудкин",null,"ежемесячно","2021-01-27","Не позднее 30 календарных дней с момента подписания Заказчиком и Подрядчиком акта приема-сдачи и предоставленного Подрядчиком документа на оплату",3000,"2021-02-04",null,null,null,null,null,null,5]
[null,null,null,null,null,null,null,null,null,null,null,null,null,"2021-02-26",null,3000,"2021-03-02",null,null,null,null,null,null,5]
[null,null,null,null,null,null,null,null,null,null,null,null,null,"2021-03-30",null,3000,"2021-04-05",null,null,null,null,null,null,5]
[null,null,null,null,null,null,null,null,null,null,null,null,null,"2021-04-27",null,3000,"2021-05-13",null,null,null,null,null,null,5]
[null,null,null,null,null,null,null,null,null,null,null,null,null,"2021-05-27",null,2000,"2021-06-09",null,null,null,null,null,null,5]
[null,null,null,null,null,null,null,null,null,null,null,null,null,"2021-06-30",null,2000,"2021-07-09",null,null,null,null,null,null,5]
[null,null,null,null,null,null,null,null,null,null,null,null,null,"2021-07-30",null,2000,"2021-08-09",null,null,null,null,null,null,5]
[null,null,null,null,null,null,null,null,null,null,null,null,null,"2021-08-30",null,2000,"2021-09-05",null,null,null,null,null,null,5]
[null,null,null,null,null,null,null,null,null,null,null,null,null,"2021-09-30",null,2000,"2021-10-08",null,null,null,null,null,null,5]
[null,null,null,null,null,null,null,null,null,null,null,null,null,"2021-10-25",null,3000,"2021-11-09",null,null,null,null,null,null,5]
[null,null,null,null,null,null,null,null,null,null,null,null,null,"2021-11-24",null,3000,"2021-12-01",null,null,null,null,null,null,5]
[null,null,null,null,null,null,null,null,null,null,null,null,null,"2021-12-20",null,3000,"2021-12-24",null,null,null,null,null,null,5]
[3,null,null,"92500000000000000244",28,"2020-12-23","услуги по обращенияс ТКО",155750.06,{"$f":"IF(X33 = 6, H33 + SUM(S33:S44) - SUM(T33:T44) - SUM(P33:P44) - V33,0)","v":62982.020000000004},null,"ОО Чистый город",null,"ежежневно","2021-01-29","Не позднее 30 календарных дней с момента подписания Заказчиком и Подрядчиком акта приема-сдачи и предоставленного Подрядчиком документа на оплату",12921.95,"2021-02-08",null,null,null,null,null,null,6]
[null,null,null,null,null,null,null,null,null,null,null,null,null,"2021-03-31",null,15043.47,"2021-06-18",null,null,null,null,null,null,6]
[null,null,null,null,null,null,null,null,null,null,null,null,null,null,null,null,null,null,null,null,null,null,null,6]
[null,null,null,null,null,null,null,null,null,null,null,null,null,null,null,null,null,null,null,null,null,null,null,6]
[null,null,null,null,null,null,null,null,null,null,null,null,null,"2021-06-30",null,1735.78,"2021-08-13",null,null,null,null,null,null,6]
[null,null,null,null,null,null,null,null,null,null,null,null,null,"2021-07-30",null,6364.54,"2021-08-13",null,null,null,null,null,null,6]
[null,null,null,null,null,null,null,null,null,null,null,null,null,"2021-09-30",null,17936.439999999999,"2021-10-15",null,null,null,null,null,null,6]
[null,null,null,null,null,null,null,null,null,null,null,null,null,"2021-08-31",null,7521.73,"2021-10-15",null,null,null,null,null,null,6]
[null,null,null,null,null,null,null,null,null,null,null,null,null,"2021-10-29",null,16200.66,"2021-11-22",null,null,null,null,null,null,6]
[null,null,null,null,null,null,null,null,null,null,null,null,null,"2021-11-30",null,15043.47,"2021-12-14",null,null,null,null,null,null,6]
[null,null,null,null,null,null,null,null,null,null,null,null,null,null,null,null,null,null,null,null,null,null,null,6]
[null,null,null,null,null,null,null,null,null,null,null,null,null,null,null,null,null,null,null,null,null,null,null,6]
[4,null,null,"92500000000000000244","1","2020-12-25","Интернет КУБАННЕТ",{"$f":"147795.24","v":147795.24},{"$f":"IF(X45 = 7, H45 + SUM(S45:S47) - SUM(T45:T47) - SUM(P45:P47) - V45,0)","v":-1.4551915228366852E-11},null,"ПАО \"Ростелеком\"",null,"ежедневно","2021-01-31","Не позднее 30 календарных дней с момента подписания Заказчиком и Подрядчиком акта приема-сдачи и предоставленного Подрядчиком документа на оплату",12316.27,"2021-02-11",null,null,null,"№1 от  28.02.2021",123162.7,null,7]
[null,null,null,null,null,null,null,null,null,null,null,null,null,"2021-02-28",null,12316.27,"2021-02-28",null,null,null,null,null,null,7]
[null,null,null,null,null,null,null,null,null,null,null,null,null,null,null,null,null,null,null,null,null,null,null,7]
[5,null,null,"92500000000000000244","230","2020-12-25","телефон (основной)",15600,{"$f":"IF(X48 = 8, H48 + SUM(S48:S61) - SUM(T48:T61) - SUM(P48:P61) - V48,0)","v":2245.3500000000004},null,"ПАО \"Ростелеком\"",null,"ежедневно","2021-01-31","Не позднее 30 календарных дней с момента подписания Заказчиком и Подрядчиком акта приема-сдачи и предоставленного Подрядчиком документа на оплату",1170.48,"2021-02-11",null,null,null,null,null,null,8]
[null,null,null,null,null,null,null,null,null,null,null,null,null,"2021-02-28",null,1210.3900000000001,"2021-03-10",null,null,null,null,null,null,8]
[null,null,null,null,null,null,null,null,null,null,null,null,null,"2021-03-31",null,1188.74,"2021-04-08",null,null,null,null,null,null,8]
[null,null,null,null,null,null,null,null,null,null,null,null,null,"2021-04-30",null,1218.6199999999999,"2021-05-14",null,null,null,null,null,null,8]
[null,null,null,null,null,null,null,null,null,null,null,null,null,"2021-05-31",null,1195.92,"2021-06-18",null,null,null,null,null,null,8]
[null,null,null,null,null,null,null,null,null,null,null,null,null,"2021-06-30",null,1315.42,"2021-07-19",null,null,null,null,null,null,8]
[null,null,null,null,null,null,null,null,null,null,null,null,null,"2021-07-31",null,1168.24,"2021-08-13",null,null,null,null,null,null,8]
[null,null,null,null,null,null,null,null,null,null,null,null,null,"2021-06-30",null,1315.42,"20.08.20211",null,null,null,null,null,null,8]
[null,null,null,null,null,null,null,null,null,null,null,null,null,"2021-09-30",null,1191.5899999999999,"2021-10-15",null,null,null,null,null,null,8]
[null,null,null,null,null,null,null,null,null,null,null,null,null,"2021-10-31",null,1192.99,"2021-11-22",null,null,null,null,null,null,8]
[null,null,null,null,null,null,null,null,null,null,null,null,null,"2021-11-30",null,1186.8399999999999,"2021-12-21",null,null,null,null,null,null,8]
[null,null,null,null,null,null,null,null,null,null,null,null,null,null,null,null,null,null,null,null,null,null,null,8]
[null,null,null,null,null,null,null,null,null,null,null,null,null,null,null,null,null,null,null,null,null,null,null,8]
[null,null,null,null,null,null,null,null,null,null,null,null,null,null,null,null,null,null,null,null,null,null,null,8]
[6,null,null,"92500000000000000244","230-Б2","2020-12-25","межугородн.переговоры.",3000,{"$f":"IF(X62 = 9, H62 + SUM(S62:S67) - SUM(T62:T67) - SUM(P62:P67) - V62,0)","v":2638.78},null,"ПАО \"Ростелеком\"",null,"ежндневно","2021-03-31","Не позднее 30 календарных дней с момента подписания Заказчиком и Подрядчиком акта приема-сдачи и предоставленного Подрядчиком документа на оплату",53.04,"2021-04-08",null,null,null,null,null,null,9]
[null,null,null,null,null,null,null,null,null,null,null,null,null,"2021-04-30",null,68.95,"2021-05-14",null,null,null,null,null,null,9]
[null,null,null,null,null,null,null,null,null,null,null,null,null,"2021-09-30",null,140.16,"2021-10-15",null,null,null,null,null,null,9]
[null,null,null,null,null,null,null,null,null,null,null,null,null,"2021-10-31",null,99.07,"2021-11-22",null,null,null,null,null,null,9]
[null,null,null,null,null,null,null,null,null,null,null,null,null,null,null,null,null,null,null,null,null,null,null,9]
[null,null,null,null,null,null,null,null,null,null,null,null,null,null,null,null,null,null,null,null,null,null,null,9]
[7,null,null,"92500000000000000244","105.15","2020-12-25","интернет 16000 ",19200,{"$f":"IF(X68 = 10, H68 + SUM(S68:S79) - SUM(T68:T79) - SUM(P68:P79) - V68,0)","v":0},null,"ПАО \"Ростелеком\"",null,null,"2021-01-31","Не позднее 30 календарных дней с момента подписания Заказчиком и Подрядчиком акта приема-сдачи и предоставленного Подрядчиком документа на оплату",1600,"2021-02-11",null,null,null,null,null,null,10]
[null,null,null,null,null,null,null,null,null,null,null,null,null,"2021-02-28",null,1600,"2021-03-10",null,null,null,null,null,null,10]
[null,null,null,null,null,null,null,null,null,null,null,null,null,"2021-03-31",null,1600,"2021-04-08",null,null,null,null,null,null,10]
[null,null,null,null,null,null,null,null,null,null,null,null,null,"2021-04-30",null,1600,"2021-05-14",null,null,null,null,null,null,10]
[null,null,null,null,null,null,null,null,null,null,null,null,null,"2021-05-31",null,1600,"2021-06-18",null,null,null,null,null,null,10]
[null,null,null,null,null,null,null,null,null,null,null,null,null,"2021-07-31",null,1600,"2021-08-13",null,null,null,null,null,null,10]
[null,null,null,null,null,null,null,null,null,null,null,null,null,"2021-08-31",null,1600,"2021-09-14",null,null,null,null,null,null,10]
[null,null,null,null,null,null,null,null,null,null,null,null,null,"31.06.2021",null,1600,"2021-09-22",null,null,null,null,null,null,10]
[null,null,null,null,null,null,null,null,null,null,null,null,null,"31.09.2021",null,1600,"2021-10-15",null,null,null,null,null,null,10]
[null,null,null,null,null,null,null,null,null,null,null,null,null,"2021-10-31",null,1600,"2021-11-22",null,null,null,null,null,null,10]
[null,null,null,null,null,null,null,null,null,null,null,null,null,"2021-11-30",null,1600,"2021-12-21",null,null,null,null,null,null,10]
[null,null,null,null,null,null,null,null,null,null,null,null,null,null,null,1600,null,null,null,null,null,null,null,10]
[8,null,null,"92500000000000000244","3","2021-01-25","поставка молока январь-май",25245,{"$f":"IF(X80 = 11, H80 + SUM(S80:S96) - SUM(T80:T96) - SUM(P80:P96) - V80,0)","v":2211},null,"ООО Калория",null,null,"2021-01-28","Не позднее 30 календарных дней с момента подписания Заказчиком и Подрядчиком акта приема-сдачи и предоставленного Подрядчиком документа на оплату",1320,"2021-02-09",null,null,null,null,null,null,11]
[null,null,null,null,null,null,null,null,null,null,null,null,null,"2021-01-21",null,1320,"2021-02-24",null,null,null,null,null,null,11]
[null,null,null,null,null,null,null,null,null,null,null,null,null,"2021-01-14",null,1320,"2021-02-24",null,null,null,null,null,null,11]
[null,null,null,null,null,null,null,null,null,null,null,null,null,"2021-02-04",null,1336.5,"2021-02-24",null,null,null,null,null,null,11]
[null,null,null,null,null,null,null,null,null,null,null,null,null,"2021-02-11",null,1353,"2021-03-13",null,null,null,null,null,null,11]
[null,null,null,null,null,null,null,null,null,null,null,null,null,"2021-02-18",null,1353,"2021-03-12",null,null,null,null,null,null,11]
[null,null,null,null,null,null,null,null,null,null,null,null,null,"2021-03-04",null,1353,"2021-03-22",null,null,null,null,null,null,11]
[null,null,null,null,null,null,null,null,null,null,null,null,null,"2021-03-11",null,1369.5,"2021-03-22",null,null,null,null,null,null,11]
[null,null,null,null,null,null,null,null,null,null,null,null,null,"18.03.201",null,1369.5,"2021-04-06",null,null,null,null,null,null,11]
[null,null,null,null,null,null,null,null,null,null,null,null,null,"2021-02-25",null,1353,"2021-04-06",null,null,null,null,null,null,11]
[null,null,null,null,null,null,null,null,null,null,null,null,null,"2021-04-01",null,1369.5,"2021-04-23",null,null,null,null,null,null,11]
[null,null,null,null,null,null,null,null,null,null,null,null,null,"2021-04-08",null,1369.5,"2021-04-23",null,null,null,null,null,null,11]
[null,null,null,null,null,null,null,null,null,null,null,null,null,"2021-04-15",null,1369.5,"2021-04-23",null,null,null,null,null,null,11]
[null,null,null,null,null,null,null,null,null,null,null,null,null,"2021-04-22",null,1369.5,"2021-05-20",null,null,null,null,null,null,11]
[null,null,null,null,null,null,null,null,null,null,null,null,null,"2021-04-29",null,1369.5,"2021-05-20",null,null,null,null,null,null,11]
[null,null,null,null,null,null,null,null,null,null,null,null,null,"2021-05-13",null,1369.5,"2021-06-01",null,null,null,null,null,null,11]
[null,null,null,null,null,null,null,null,null,null,null,null,null,"2021-05-20",null,1369.5,"2021-06-02",null,null,null,null,null,null,11]
[9,null,null,"92500000000000000244","3","2021-01-25","питание 6 руб",127500,{"$f":"IF(X97 = 12, H97 + SUM(S97:S102) - SUM(T97:T102) - SUM(P97:P102) - V97,0)","v":0},2353020735,"РАЙПО",null,"ежедневно","2021-01-29","Не позднее 30 календарных дней с момента подписания Заказчиком и Подрядчиком акта приема-сдачи и предоставленного Подрядчиком документа на оплату",17922,"2021-02-11",null,null,null,"07.06.2021",36174,null,12]
[null,null,null,null,null,null,null,null,null,null,null,null,null,"2021-02-26",null,19212,"2021-03-12",null,null,null,null,null,null,12]
[null,null,null,null,null,null,null,null,null,null,null,null,null,"2021-03-31",null,19758,"2021-04-12",null,null,null,null,null,null,12]
[null,null,null,null,null,null,null,null,null,null,null,null,null,"2021-04-30",null,26796,"2021-05-20",null,null,null,null,null,null,12]
[null,null,null,null,null,null,null,null,null,null,null,null,null,"2021-05-21",null,7638,"2021-06-07",null,null,null,null,null,null,12]
[null,null,null,null,null,null,null,null,null,null,null,null,null,null,null,null,null,null,null,null,null,null,null,12]
[10,null,null,"92500000000000000244","2","2021-01-25","питание 10 руб многодетные",36550,{"$f":"IF(X103 = 13, H103 + SUM(S103:S108) - SUM(T103:T108) - SUM(P103:P108) - V103,0)","v":0},2353020735,"РаЙПО ",null,"ежедневно","2021-01-29","Не позднее 30 календарных дней с момента подписания Заказчиком и Подрядчиком акта приема-сдачи и предоставленного Подрядчиком документа на оплату",3650,"2021-02-11",null,null,null,"07.06.2021",17290,null,13]
[null,null,null,null,null,null,null,null,null,null,null,null,null,"2021-02-26",null,4010,"2021-03-12",null,null,null,null,null,null,13]
[null,null,null,null,null,null,null,null,null,null,null,null,null,"2021-03-31",null,4160,"2021-04-12",null,null,null,null,null,null,13]
[null,null,null,null,null,null,null,null,null,null,null,null,null,"2021-04-30",null,5600,"2021-05-20",null,null,null,null,null,null,13]
[null,null,null,null,null,null,null,null,null,null,null,null,null,"2021-05-21",null,1840,"2021-06-07",null,null,null,null,null,null,13]
[null,null,null,null,null,null,null,null,null,null,null,null,null,null,null,null,null,null,null,null,null,null,null,13]
[11,null,null,"92500000000000000244","4","2021-01-25","питание 62,60(1-4 классы) январь",422550,{"$f":"IF(X109 = 14, H109 + SUM(S109:S112) - SUM(T109:T112) - SUM(P109:P112) - V109,0)","v":1.4551915228366852E-11},2353020735,"ООО ПРТ Райпо",null,"ежедневно","2021-01-22","Не позднее 30 календарных дней с момента подписания Заказчиком и Подрядчиком акта приема-сдачи и предоставленного Подрядчиком документа на оплату",20819.86,"2021-02-24",null,null,null,"24.02.2021",75559.259999999995,null,14]
[null,null,null,null,null,null,null,null,null,null,null,null,null,"2021-02-02",null,326170.88,"2021-02-24",null,null,null,null,null,null,14]
[null,null,null,null,null,null,null,null,null,null,null,null,null,null,null,null,null,null,null,null,null,null,null,14]
[null,null,null,null,null,null,null,null,null,null,null,null,null,null,null,null,null,null,null,null,null,null,null,14]
[12,null,null,"92500000000000000244","5","2021-01-25","Питание ОВЗ за декабрь20/20/62,60",69955,{"$f":"IF(X113 = 15, H113 + SUM(S113:S118) - SUM(T113:T118) - SUM(P113:P118) - V113,0)","v":0},2353020735,"ООО ПРТ Райпо",null,"ежедневно","2021-01-29","Не позднее 30 календарных дней с момента подписания Заказчиком и Подрядчиком акта приема-сдачи и предоставленного Подрядчиком документа на оплату",10208,"2021-02-11",null,null,null,"07.06.2021",21329,null,15]
[null,null,null,null,null,null,null,null,null,null,null,null,null,"2021-02-26",null,10917,"2021-03-12",null,null,null,null,null,null,15]
[null,null,null,null,null,null,null,null,null,null,null,null,null,"2021-03-31",null,10545,"2021-04-12",null,null,null,null,null,null,15]
[null,null,null,null,null,null,null,null,null,null,null,null,null,"2021-04-30",null,13720,"2021-05-20",null,null,null,null,null,null,15]
[null,null,null,null,null,null,null,null,null,null,null,null,null,"2021-01-25",null,3236,"2021-06-07",null,null,null,null,null,null,15]
[null,null,null,null,null,null,null,null,null,null,null,null,null,null,null,null,null,null,null,null,null,null,null,15]
[13,null,null,"92500000000000000244","6","2021-01-25","Услуги питания 16,5 декабрь 2020",549994.5,{"$f":"IF(X119 = 16, H119 + SUM(S119:S121) - SUM(T119:T121) - SUM(P119:P121) - V119,0)","v":343579.5},2353020735,"ООО ПРТ Райпо",null,"ежедневно","2021-01-29","Не позднее 30 календарных дней с момента подписания Заказчиком и Подрядчиком акта приема-сдачи и предоставленного Подрядчиком документа на оплату",97284,"2021-03-01",null,null,null,null,null,null,16]
[null,null,null,null,null,null,null,null,null,null,null,null,null,"2021-02-26",null,109131,"2021-03-12",null,null,null,null,null,null,16]
[null,null,null,null,null,null,null,null,null,null,null,null,null,null,null,null,null,null,null,null,null,null,null,16]
[14,null,null,"92500000000000000244","7","2021-02-01","питание 1-4 кл февраль 2021",391060.1,{"$f":"IF(X122 = 17, H122 + SUM(S122:S127) - SUM(T122:T127) - SUM(P122:P127) - V122,0)","v":-5.8207660913467407E-11},2353020735,"ООО ПРТ Райпо",null,"ежедневно","2021-02-05","Не позднее 30 календарных дней с момента подписания Заказчиком и Подрядчиком акта приема-сдачи и предоставленного Подрядчиком документа на оплату",6619.9,"2021-03-19",null,null,null,null,null,null,17]
[null,null,null,null,null,null,null,null,null,null,null,null,null,"2021-02-19",null,11821.11,"2021-03-19",null,null,null,null,null,null,17]
[null,null,null,null,null,null,null,null,null,null,null,null,null,"2021-02-26",null,5023.0600000000004,"2021-03-19",null,null,null,null,null,null,17]
[null,null,null,null,null,null,null,null,null,null,null,null,null,"2021-02-05",null,103709.66,"2021-03-19",null,null,null,null,null,null,17]
[null,null,null,null,null,null,null,null,null,null,null,null,null,"2021-02-19",null,185193.43,"2021-03-19",null,null,null,null,null,null,17]
[null,null,null,null,null,null,null,null,null,null,null,null,null,"2021-02-26",null,78692.94,"2021-03-19",null,null,null,null,null,null,17]
[15,null,null,"92500000000000000244","32-1/21","2021-02-16","мед.осмотры (край)",3798,{"$f":"IF(X128 = 18, H128 + SUM(S128:S128) - SUM(T128:T128) - SUM(P128:P128) - V128,0)","v":0},null,"ГБУЗ \"Тимашевская ЦРБ\"",null,null,"2021-03-26","Не позднее 30 календарных дней с момента подписания Заказчиком и Подрядчиком акта приема-сдачи и предоставленного Подрядчиком документа на оплату",3798,"2021-04-08",null,null,null,null,null,null,18]
[16,null,null,"92500000000000000244","32/21","2021-02-16","мед.осмотры (край)",163026,{"$f":"IF(X129 = 19, H129 + SUM(S129:S129) - SUM(T129:T129) - SUM(P129:P129) - V129,0)","v":0},null,"ГБУЗ \"Тимашевская ЦРБ\"",null,null,"2021-03-26","Не позднее 30 календарных дней с момента подписания Заказчиком и Подрядчиком акта приема-сдачи и предоставленного Подрядчиком документа на оплату",163026,"2021-04-08",null,null,null,null,null,null,19]
[17,null,null,"92500000000000000244","9","2021-03-03","питание 1-4 кл март 2021",410448.28,{"$f":"IF(X130 = 21, H130 + SUM(S130:S137) - SUM(T130:T137) - SUM(P130:P137) - V130,0)","v":5.8207660913467407E-11},null,"ПРТ Райпо",null,null,"2021-03-19","Не позднее 30 календарных дней с момента подписания Заказчиком и Подрядчиком акта приема-сдачи и предоставленного Подрядчиком документа на оплату",12930.93,"2021-04-21",null,null,null,null,null,null,21]
[null,null,null,null,null,null,null,null,null,null,null,null,null,"2021-03-19",null,202580.31,"2021-04-21",null,null,null,null,null,null,21]
[null,null,null,null,null,null,null,null,null,null,null,null,null,"2021-03-05",null,7208.03,"2021-04-21",null,null,null,null,null,null,21]
[null,null,null,null,null,null,null,null,null,null,null,null,null,"2021-03-05",null,112923.39,"2021-04-21",null,null,null,null,null,null,21]
[null,null,null,null,null,null,null,null,null,null,null,null,null,"2021-03-31",null,4488.43,"2021-04-21",null,null,null,null,null,null,21]
[null,null,null,null,null,null,null,null,null,null,null,null,null,"2021-03-31",null,70317.19,"2021-04-21",null,null,null,null,null,null,21]
[null,null,null,null,null,null,null,null,null,null,null,null,null,null,null,null,null,null,null,null,null,null,null,21]
[null,null,null,null,null,null,null,null,null,null,null,null,null,null,null,null,null,null,null,null,null,null,null,21]
[18,null,null,"92500000000000000244","10","2021-03-03","услуга питания 19 руб",131594,{"$f":"IF(X138 = 22, H138 + SUM(S138:S138) - SUM(T138:T138) - SUM(P138:P138) - V138,0)","v":0},null,"ПРТ Райпо",null,null,"2021-03-31","Не позднее 30 календарных дней с момента подписания Заказчиком и Подрядчиком акта приема-сдачи и предоставленного Подрядчиком документа на оплату",131594,"2021-04-12",null,null,null,null,null,null,22]
[19,null,null,"92500000000000000244","201","2021-03-17","Вывоз ТКО Крупногабаритный .Лодочка",21005.599999999999,{"$f":"IF(X139 = 23, H139 + SUM(S139:S140) - SUM(T139:T140) - SUM(P139:P140) - V139,0)","v":-3884.6800000000003},null,"ООО \"Чистый город\"",null,null,"2021-04-30","Не позднее 30 календарных дней с момента подписания Заказчиком и Подрядчиком акта приема-сдачи и предоставленного Подрядчиком документа на оплату",13886.28,"2021-06-18",null,null,null,null,null,null,23]
[null,null,null,null,null,null,null,null,null,null,null,null,null,"30.07.201",null,11004,"2021-08-16",null,null,null,null,null,null,23]
[20,null,null,"92500000000000000244","12","2021-04-01","питание 1-4 кл апрель",535437.57999999996,{"$f":"IF(X141 = 25, H141 + SUM(S141:S141) - SUM(T141:T141) - SUM(P141:P141) - V141,0)","v":0},null,"ООО ПРТ Райпо",null,"ежедневно","2021-04-30",null,535437.57999999996,"2021-05-20",null,null,null,null,null,null,25]
[21,null,null,"92500000000000000244","13","2021-04-01","Услуга питания 19ру.апрель",168150,{"$f":"IF(X142 = 26, H142 + SUM(S142:S144) - SUM(T142:T144) - SUM(P142:P144) - V142,0)","v":0},null,"ООО ПРТ Райпо",null,"ежедневно","2021-04-30",null,168150,"2021-05-20",null,null,null,null,null,null,26]
[null,null,null,null,null,null,null,null,null,null,null,null,null,null,null,null,null,null,null,null,null,null,null,26]
[null,null,null,null,null,null,null,null,null,null,null,null,null,null,null,null,null,null,null,null,null,null,null,26]
[22,null,null,"92500000000000000244","3679607","2021-04-27","Бумага А4 (ЕГЭ)",45180,{"$f":"IF(X145 = 27, H145 + SUM(S145:S145) - SUM(T145:T145) - SUM(P145:P145) - V145,0)","v":0},null,"ИП Гришаев С.С",null,"в точени 2 дней","2021-04-27",null,45180,"2021-05-25",null,null,null,null,null,null,27]
[23,null,null,"92500000000000000244","16","2021-05-12","питание 1-4 кл май",189796.01,{"$f":"IF(X146 = 28, H146 + SUM(S146:S146) - SUM(T146:T146) - SUM(P146:P146) - V146,0)","v":0},null,"ООО ПРТ Райпо",null,"ежедневно","2021-05-22",null,189796.01,"2021-07-07",null,null,null,null,null,null,28]
[24,null,null,"92500000000000000244","17","2021-05-12","услуга 19 руб май ",61503,{"$f":"IF(X147 = 29, H147 + SUM(S147:S147) - SUM(T147:T147) - SUM(P147:P147) - V147,0)","v":0},null,"ООО ПРТ Райпо",null,"ежедневно","2021-05-21",null,61503,"2021-06-07",null,null,null,null,null,null,29]
[25,null,null,"92500000000000000244","1194","2021-05-13","Видеотрансляция ЕГЭ",405970.67,{"$f":"IF(X148 = 30, H148 + SUM(S148:S152) - SUM(T148:T152) - SUM(P148:P152) - V148,0)","v":-5.8207660913467407E-11},null,"ПАО \"Ростелеком\"",null,"ежедневно","2021-05-31",null,{"$f":"169947.59+58120.67","v":228068.26},"2021-08-05",null,null,null,null,null,null,30]
[null,null,null,null,null,null,null,null,null,null,null,null,null,"2021-07-12",null,148325.51,"2021-08-05",null,null,null,null,null,null,30]
[null,null,null,null,null,null,null,null,null,null,null,null,null,"2021-08-31",null,8721.82,"2021-10-20",null,null,null,null,null,null,30]
[null,null,null,null,null,null,null,null,null,null,null,null,null,null,null,null,null,null,null,null,null,null,null,30]
[null,null,null,null,null,null,null,null,null,null,null,null,null,"2021-11-15",null,20855.080000000002,"23.11.201",null,null,null,null,null,null,30]
[26,null,null,"92500000000000000244","19","2021-06-04","ремонт библиотеки",338575.2,{"$f":"IF(X153 = 32, H153 + SUM(S153:S154) - SUM(T153:T154) - SUM(P153:P154) - V153,0)","v":0},null,"ИП Рогочих",null,null,"2021-08-12",null,{"$f":"335583+2992.2","v":338575.2},"2021-08-17",null,null,null,null,null,null,32]
[null,null,null,null,null,null,null,null,null,null,null,null,null,null,null,null,null,null,null,null,null,null,null,32]
[27,null,null,"92500000000000000244","23","2021-06-15","ремонт музея",181028,{"$f":"IF(X155 = 33, H155 + SUM(S155:S156) - SUM(T155:T156) - SUM(P155:P156) - V155,0)","v":1.8189894035458565E-12},null,"ИП Рогочих",null,null,"2021-09-10",null,165616,"2021-09-21",null,null,null,"20.09.2021",-15197.31,null,33]
[null,null,null,null,null,null,null,null,null,null,null,null,null,"2021-09-10",null,30609.31,"2021-09-22",null,null,null,null,null,null,33]
[28,null,null,"92500000000000000244","24","2021-06-28","ремонт лестницы",206926.01,{"$f":"IF(X157 = 34, H157 + SUM(S157:S158) - SUM(T157:T158) - SUM(P157:P158) - V157,0)","v":0},null,"ИП Рогочих",null,null,"2021-06-28",null,191025,"2021-09-22",null,null,null,null,null,null,34]
[null,null,null,null,null,null,null,null,null,null,null,null,null,"2021-06-28",null,15901.01,"2021-09-22",null,null,null,null,null,null,34]
[29,null,null,"92500000000000000244","25","2021-06-28","услуги по организации питания",58522.8,{"$f":"IF(X159 = 35, H159 + SUM(S159:S160) - SUM(T159:T160) - SUM(P159:P160) - V159,0)","v":4.0927261579781771E-12},null,"ООО Тимашевское ПРТ Райпо",null,null,"2021-06-28",null,43696.24,"2021-07-22",null,null,null,"22.07.2021",3901.52,null,35]
[null,null,null,null,null,null,null,null,null,null,null,null,null,"2021-07-15",null,10925.04,"2021-07-22",null,null,null,null,null,null,35]
[30,null,null,"92500000000000000244","50","2021-06-30","охрана",353280,{"$f":"IF(X161 = 37, H161 + SUM(S161:S167) - SUM(T161:T167) - SUM(P161:P167) - V161,0)","v":0},null,"ООО ЧОО\"Легион\"",null,"ежедневно","2021-07-31",null,59520,"2021-08-04",null,null,null,null,null,null,37]
[null,null,null,null,null,null,null,null,null,null,null,null,null,"2021-08-31",null,59520,"2021-09-01",null,null,null,null,null,null,37]
[null,null,null,null,null,null,null,null,null,null,null,null,null,"2021-09-30",null,57600,"2021-10-22",null,null,null,null,null,null,37]
[null,null,null,null,null,null,null,null,null,null,null,null,null,"2021-10-31",null,59520,"2021-11-09",null,null,null,null,null,null,37]
[null,null,null,null,null,null,null,null,null,null,null,null,null,"2021-12-21",null,59520,"2021-12-24",null,null,null,null,null,null,37]
[null,null,null,null,null,null,null,null,null,null,null,null,null,"2021-11-30",null,57600,"01.12.20211",null,null,null,null,null,null,37]
[null,null,null,null,null,null,null,null,null,null,null,null,null,null,null,null,null,null,null,null,null,null,null,37]
[31,null,null,"92500000000000000244","348","2021-07-29","мебель для музея",103658,{"$f":"IF(X168 = 40, H168 + SUM(S168:S168) - SUM(T168:T168) - SUM(P168:P168) - V168,0)","v":0},null,"ООО ТитМебель",null,"1 раз в месяц","2021-08-02",null,103658,"2021-08-05",null,null,null,null,null,null,40]
[32,null,null,"92500000000000000244","19/1","2021-07-26","ремонт пола  библиотеке",2360.98,{"$f":"IF(X169 = 41, H169 + SUM(S169:S169) - SUM(T169:T169) - SUM(P169:P169) - V169,0)","v":0},null,"ИП Рогочих",null,"2 раз в месяц","2021-07-29",null,2360.98,"2021-08-23",null,null,null,null,null,null,41]
[33,null,null,"92500000000000000244","28","2021-08-05","ремонт музея/доп работы",35000,{"$f":"IF(X170 = 42, H170 + SUM(S170:S170) - SUM(T170:T170) - SUM(P170:P170) - V170,0)","v":0},null,"ИП рогочих",null,null,null,null,35000,null,null,null,null,null,null,null,42]
[34,null,null,"92500000000000000244","б/н","2021-09-01","проверка приборов теплосчетчики",35000,{"$f":"IF(X171 = 43, H171 + SUM(S171:S171) - SUM(T171:T171) - SUM(P171:P171) - V171,0)","v":0},null,"ИП Дудкин",null,null,"2021-09-09",null,35000,"2021-09-15",null,null,null,null,null,null,43]
[35,null,null,"92500000000000000244","31","2021-09-01","молоко",23205,{"$f":"IF(X172 = 44, H172 + SUM(S172:S185) - SUM(T172:T185) - SUM(P172:P185) - V172,0)","v":0},null,"ООО Калория",null,null,"2021-09-01",null,955.5,"2021-10-08",null,null,null,"1-24.12.2021",2454.5,null,44]
[null,null,null,null,null,null,null,null,null,null,null,null,null,"2021-09-01",null,1443,"2021-10-08",null,null,null,null,null,null,44]
[null,null,null,null,null,null,null,null,null,null,null,null,null,"2021-09-01",null,1462.5,"2021-10-15",null,null,null,null,null,null,44]
[null,null,null,null,null,null,null,null,null,null,null,null,null,"2021-10-07",null,1462.5,"2021-10-20",null,null,null,null,null,null,44]
[null,null,null,null,null,null,null,null,null,null,null,null,null,"2021-10-14",null,1462.5,"2021-10-26",null,null,null,null,null,null,44]
[null,null,null,null,null,null,null,null,null,null,null,null,null,"2021-10-29",null,1560.5,"2021-11-10",null,null,null,null,null,null,44]
[null,null,null,null,null,null,null,null,null,null,null,null,null,"2021-10-21",null,1560.5,"2021-11-19",null,null,null,null,null,null,44]
[null,null,null,null,null,null,null,null,null,null,null,null,null,"2021-11-11",null,1560.5,"2021-11-19",null,null,null,null,null,null,44]
[null,null,null,null,null,null,null,null,null,null,null,null,null,"2021-11-18",null,1560.5,"2021-12-09",null,null,null,null,null,null,44]
[null,null,null,null,null,null,null,null,null,null,null,null,null,"2021-11-25",null,1560.5,"2021-12-09",null,null,null,null,null,null,44]
[null,null,null,null,null,null,null,null,null,null,null,null,null,"2021-12-09",null,1540.5,"2021-12-14",null,null,null,null,null,null,44]
[null,null,null,null,null,null,null,null,null,null,null,null,null,"2021-12-16",null,1540.5,"2021-12-21",null,null,null,null,null,null,44]
[null,null,null,null,null,null,null,null,null,null,null,null,null,"2021-12-02",null,1540.5,"2021-12-24",null,null,null,null,null,null,44]
[null,null,null,null,null,null,null,null,null,null,null,null,null,"2021-12-23",null,1540.5,"2021-12-24",null,null,null,null,null,null,44]
[36,null,null,"92500000000000000244","32","2021-09-01","питание 10 руб многодетные",31200,{"$f":"IF(X186 = 45, H186 + SUM(S186:S189) - SUM(T186:T189) - SUM(P186:P189) - V186,0)","v":0},null,"ПРТ Райпо ",null,null,"2021-09-30",null,5680,"2021-10-14",null,null,null,"29.12.2021",8650,null,45]
[null,null,null,null,null,null,null,null,null,null,null,null,null,"2021-10-29",null,6300,"2021-11-22",null,null,null,null,null,null,45]
[null,null,null,null,null,null,null,null,null,null,null,null,null,"2021-11-30",null,5850,"2021-12-14",null,null,null,null,null,null,45]
[null,null,null,null,null,null,null,null,null,null,null,null,null,"2021-12-28",null,4720,"2021-12-29",null,null,null,null,null,null,45]
[37,null,null,"92500000000000000244","33","2021-09-01","питание 6 руб",117000,{"$f":"IF(X190 = 46, H190 + SUM(S190:S193) - SUM(T190:T193) - SUM(P190:P193) - V190,0)","v":0},null,"ПРТ Райпо ",null,null,"2021-09-30",null,29298,"2021-10-14",null,null,null,"29.12.2021",9660,null,46]
[null,null,null,null,null,null,null,null,null,null,null,null,null,"2021-10-29",null,28986,"2021-11-22",null,null,null,null,null,null,46]
[null,null,null,null,null,null,null,null,null,null,null,null,null,"2021-11-30",null,23982,"2021-12-14",null,null,null,null,null,null,46]
[null,null,null,null,null,null,null,null,null,null,null,null,null,"2021-12-28",null,25074,"2021-12-29",null,null,null,null,null,null,46]
[38,null,null,"92500000000000000244","58","2021-09-10","пропитка чердачн.перекрытий",86663.2,{"$f":"IF(X194 = 47, H194 + SUM(S194:S194) - SUM(T194:T194) - SUM(P194:P194) - V194,0)","v":0},null,"ООО ГлавПожСнаб\"",null,null,"2021-09-17",null,86663.2,"2021-09-24",null,null,null,null,null,null,47]
[39,null,null,"92500000000000000244","230","2021-09-21","мебель для музея аренда",26900,{"$f":"IF(X195 = 48, H195 + SUM(S195:S195) - SUM(T195:T195) - SUM(P195:P195) - V195,0)","v":0},null,"тит мебель",null,null,"2021-10-29",null,26900,"2011-11-08",null,null,null,null,null,null,48]
[40,null,null,"92500000000000000244","35","2021-09-28","сканер",223255,{"$f":"IF(X196 = 49, H196 + SUM(S196:S196) - SUM(T196:T196) - SUM(P196:P196) - V196,0)","v":0},null,"ООО \"\"Компьютерный бизнес сервис СиБиЭс\"",null,null,"2021-09-28",null,223255,"2021-09-30",null,null,null,null,null,null,49]
[41,null,null,"92500000000000000244","113","2021-09-24","стенды",65342,{"$f":"IF(X197 = 50, H197 + SUM(S197:S197) - SUM(T197:T197) - SUM(P197:P197) - V197,0)","v":0},null,"ИП Костерев ",null,null,"2021-09-24",null,65342,"2021-09-29",null,null,null,null,null,null,50]
[42,null,null,"92500000000000000244","40","2021-10-28","Краска",129750,{"$f":"IF(X198 = 51, H198 + SUM(S198:S198) - SUM(T198:T198) - SUM(P198:P198) - V198,0)","v":0},null,"ИП Быстров",null,null,"2021-10-28",null,129750,"2021-11-08",null,null,null,null,null,null,51]
[43,null,null,"92500000000000000244","46","2011-12-07","установка систем экстренного оповещения ",520000,{"$f":"IF(X199 = 52, H199 + SUM(S199:S199) - SUM(T199:T199) - SUM(P199:P199) - V199,0)","v":0},null,"ИП Войтенко",null,null,"2021-12-22",null,520000,"2021-12-22",null,null,null,null,null,null,52]
[44,null,null,"92500000000000000244",47,"2021-12-07","ПИтание 1-4 класс декабрь",463130.06,{"$f":"IF(X200 = 53, H200 + SUM(S200:S205) - SUM(T200:T205) - SUM(P200:P205) - V200,0)","v":5.8207660913467407E-11},{"$f":"P200+P201+P202+P203+P204+P205","v":463130.05999999994},"ООО ПРТ Райпо",null,null,"2021-12-10",null,171576.65,"2021-12-21",null,null,null,null,null,null,53]
[null,null,null,null,null,null,null,null,null,null,null,null,null,"2021-12-10",null,10961.93,"2021-12-21",null,null,null,null,null,null,53]
[null,null,null,null,null,null,null,null,null,null,null,null,null,"2021-12-24",null,220169.42,"2021-12-29",null,null,null,null,null,null,53]
[null,null,null,null,null,null,null,null,null,null,null,null,null,"2021-12-24",null,14053.66,"2021-12-29",null,null,null,null,null,null,53]
[null,null,null,null,null,null,null,null,null,null,null,null,null,"2021-12-28",null,43586.239999999998,"2021-12-29",null,null,null,null,null,null,53]
[null,null,null,null,null,null,null,null,null,null,null,null,null,"2021-12-28",null,2782.16,"2021-12-29",null,null,null,null,null,null,53]
[45,null,null,"92500000000000000244","53","2021-12-21","сплитсисема с установкой",166838,{"$f":"IF(X206 = 54, H206 + SUM(S206:S206) - SUM(T206:T206) - SUM(P206:P206) - V206,0)","v":0},null,"ООО Сигнал",null,null,"2021-12-21",null,166838,"2011-12-24",null,null,null,null,null,null,54]
[46,null,null,"92500000000000000244","611","2021-12-15","дверной доводчик и тл",74690,{"$f":"IF(X207 = 55, H207 + SUM(S207:S207) - SUM(T207:T207) - SUM(P207:P207) - V207,0)","v":0},null,"ИП Бака",null,null,"2021-12-15",null,74690,"2021-12-17",null,null,null,null,null,null,55]
[47,null,null,null,null,null,null,null,{"$f":"IF(X208 = 56, H208 + SUM(S208:S208) - SUM(T208:T208) - SUM(P208:P208) - V208,0)","v":0},null,null,null,null,null,null,null,null,null,null,null,null,null,null,56]
[48,null,null,null,null,null,null,null,{"$f":"IF(X209 = 57, H209 + SUM(S209:S209) - SUM(T209:T209) - SUM(P209:P209) - V209,0)","v":0},null,null,null,null,null,null,null,null,null,null,null,null,null,null,57]
[49,null,null,null,null,null,null,null,{"$f":"IF(X210 = 58, H210 + SUM(S210:S210) - SUM(T210:T210) - SUM(P210:P210) - V210,0)","v":0},null,null,null,null,null,null,null,null,null,null,null,null,null,null,58]
[50,null,null,null,null,null,null,null,{"$f":"IF(X211 = 59, H211 + SUM(S211:S211) - SUM(T211:T211) - SUM(P211:P211) - V211,0)","v":0},null,null,null,null,null,null,null,null,null,null,null,null,null,null,59]
[51,null,null,null,null,null,null,null,{"$f":"IF(X212 = 60, H212 + SUM(S212:S212) - SUM(T212:T212) - SUM(P212:P212) - V212,0)","v":0},null,null,null,null,null,null,null,null,null,null,null,null,null,null,60]
[52,null,null,null,null,null,null,null,{"$f":"IF(X213 = 61, H213 + SUM(S213:S213) - SUM(T213:T213) - SUM(P213:P213) - V213,0)","v":0},null,null,null,null,null,null,null,null,null,null,null,null,null,null,61]
[53,null,null,null,null,null,null,null,{"$f":"IF(X214 = 62, H214 + SUM(S214:S214) - SUM(T214:T214) - SUM(P214:P214) - V214,0)","v":0},null,null,null,null,null,null,null,null,null,null,null,null,null,null,62]
[54,null,null,null,null,null,null,null,{"$f":"IF(X215 = 63, H215 + SUM(S215:S215) - SUM(T215:T215) - SUM(P215:P215) - V215,0)","v":0},null,null,null,null,null,null,null,null,null,null,null,null,null,null,63]
[null,null,null,null,null,null,null,null,null,null,null,null,null,null,null,null,null,null,null,null,null,null,null,64]

{"sheet":"Ед.поставщик за искл. п.4,5 ч.1","index":3,"n_rows":86,"n_cols":22,"rows_kept":86,"cut":false,"hidden":false,"merged":[[43,19,68,19],[43,2,68,2],[43,20,68,20],[43,3,68,3],[43,4,68,4],[43,5,68,5],[43,6,68,6],[43,7,68,7],[43,8,68,8],[43,9,68,9],[43,10,68,10],[81,20,83,20],[81,7,83,7],[69,0,80,0],[69,12,80,12],[69,1,80,1],[69,19,80,19],[69,2,80,2],[69,20,80,20],[69,3,80,3],[69,4,80,4],[69,5,80,5],[69,6,80,6],[69,7,80,7],[69,8,80,8],[69,9,80,9],[69,10,80,10],[81,19,83,19],[81,2,83,2],[81,3,83,3],[81,4,83,4],[81,5,83,5],[81,6,83,6],[1,4,1,5],[1,11,1,12],[81,0,83,0],[81,12,83,12],[81,18,83,18],[81,1,83,1],[43,0,68,0],[43,12,68,12],[43,18,68,18],[43,1,68,1],[81,8,83,8],[81,9,83,9],[81,10,83,10],[69,18,80,18],[1,16,1,18],[8,0,42,0],[8,1,42,1],[8,2,42,2],[8,6,42,6],[8,7,42,7],[8,12,42,12],[8,18,42,18],[8,19,42,19],[8,20,42,20],[8,3,42,3],[8,4,42,4],[8,5,42,5],[8,8,42,8],[8,9,42,9],[8,10,42,10]]}
[]
[null,null,null,null,"Сумма заключенных контрактов",null,{"$f":"SUM(G9:G9999)","v":4022529.0599999996},null,null,null,null,"Сумма средств выплаченных по контрактам",null,{"$f":"SUM(N9:N9999)","v":3523139.5099999993},null,null,"Общая сумма расторжений по контрактам/договорам",null,null,{"$f":"SUM(T9:T9999)","v":159457.32999999999}]
[]
[]
[]
["№ п/п","№ в реестре контрактов ","Код бюджетной классификации","№ контракта","Дата заключения","Предмет договора/контракта","Цена контракта (Объем финансового обеспечения подлежащий к оплате в текущем фин. году)","Остаток по контракту","ИНН поставщика (подрядчика, исполнителя) ","Поставщик (подрядчик, исполнитель)","Сроки поставки товара (оказания услуги, выполнения работы), согласно контракта; Предоставление документов на оплату Закзчику","Фактическая дата поставки товара (оказания услуги, выполнения работы) и (или) предоставление документов на оплату и подписание документов о приемке","Сроки оплаты согласно договора/контракта","Сумма согласно документа об исполнении контракта заказчиком","Фактическая дата оплаты","Изменение контракта (№, дата)","Изменение контракта (увеличение цены контракта в рублях)","Изменение контракта (уменьшение цены контракта в рублях)","Расторжение контракта (№, дата)","Сумма расторжения","Примечание"]
["1","2","3","4","5","6","7","8","9","10","11","12","13","14","15","16","17","18","19","20","21"]
["1","3235301125818100175","9020104 5210000190244","123","2019-12-24","Поставка электрической энергии",100000,90000,2308091759,"АО \"НЭСК\"","Поставка электрической энергии осуществляется постоянно, в течение срока действия контракта","2019-12-02","До 10 числа расчетного месяца в размере 30%, до 25 числа расчетного месяца 40%, до 18 числа месяца, следующего за расчетным",10000,"2019-01-24",null,null,null,null,null,"Пример"]
[1,"32353014442 20 000018","92500000000000000247","219","2020-12-21","Поставка электроэнергии",1274699.3999999999,{"$f":"IF(V9 = 1, G9 + SUM(Q9:Q43) - SUM(R9:R43) - SUM(N9:N43) - T9,0)","v":340932.22},2308091759,"АО НЭСК","Поставка эосуществляется постоянно, в течение срока действия контракта",null,"До 10 числа расчетного месяца в размере 30%, до 25 числа расчетного месяца 40%, до 18 числа месяца, следующего за расчетным",23936.59,"2021-01-20",null,null,null,null,null,null,1]
[null,null,null,null,null,null,null,null,null,null,null,"2021-01-01",null,40088.550000000003,"2021-01-20",null,null,null,null,null,null,1]
[null,null,null,null,null,null,null,null,null,null,null,"2021-01-02",null,30061.46,"2021-02-04",null,null,null,null,null,null,1]
[null,null,null,null,null,null,null,null,null,null,null,"2021-01-31",null,1649.65,"2021-02-16",null,null,null,null,null,null,1]
[null,null,null,null,null,null,null,null,null,null,null,"2021-02-02",null,26265.91,"2021-02-16",null,null,null,null,null,null,1]
[null,null,null,null,null,null,null,null,null,null,null,"2021-03-01",null,19714.439999999999,"2021-03-04",null,null,null,null,null,null,1]
[null,null,null,null,null,null,null,null,null,null,null,"2021-03-02",null,39943.57,"2021-03-17",null,null,null,null,null,null,1]
[null,null,null,null,null,null,null,null,null,null,null,"2021-02-28",null,43541.74,"2021-03-17",null,null,null,null,null,null,1]
[null,null,null,null,null,null,null,null,null,null,null,"2021-04-01",null,29957.68,"2021-04-01",null,null,null,null,null,null,1]
[null,null,null,null,null,null,null,null,null,null,null,"2021-03-31",null,16129.05,"2021-04-16",null,null,null,null,null,null,1]
[null,null,null,null,null,null,null,null,null,null,null,"2021-04-02",null,30316.81,"2021-04-16",null,null,null,null,null,null,1]
[null,null,null,null,null,null,null,null,null,null,null,"2021-05-01",null,22745.040000000001,"2021-05-14",null,null,null,null,null,null,1]
[null,null,null,null,null,null,null,null,null,null,null,"2021-04-30",null,31536.15,"2021-05-21",null,null,null,null,null,null,1]
[null,null,null,null,null,null,null,null,null,null,null,"2021-06-01",null,27544.19,"2021-06-02",null,null,null,null,null,null,1]
[null,null,null,null,null,null,null,null,null,null,null,"2021-06-02",null,20777.240000000002,"2021-06-18",null,null,null,null,null,null,1]
[null,null,null,null,null,null,null,null,null,null,null,"2021-05-31",null,29178.9,"2021-06-18",null,null,null,null,null,null,1]
[null,null,null,null,null,null,null,null,null,null,null,"2021-07-01",null,15573.34,"2021-07-08",null,null,null,null,null,null,1]
[null,null,null,null,null,null,null,null,null,null,null,"2021-08-01",null,9184.69,"2021-08-05",null,null,null,null,null,null,1]
[null,null,null,null,null,null,null,null,null,null,null,"2021-07-31",null,29191.06,"2021-09-01",null,null,null,null,null,null,1]
[null,null,null,null,null,null,null,null,null,null,null,"2021-09-01",null,18759.47,"2021-09-02",null,null,null,null,null,null,1]
[null,null,null,null,null,null,null,null,null,null,null,"2021-08-31",null,46811.41,"2021-09-21",null,null,null,null,null,null,1]
[null,null,null,null,null,null,null,null,null,null,null,"2021-09-02",null,22396.2,"2021-09-21",null,null,null,null,null,null,1]
[null,null,null,null,null,null,null,null,null,null,null,"2021-10-01",null,16805.59,"2021-10-01",null,null,null,null,null,null,1]
[null,null,null,null,null,null,null,null,null,null,null,"2021-09-30",null,66805.179999999993,"2021-10-22",null,null,null,null,null,null,1]
[null,null,null,null,null,null,null,null,null,null,null,"2021-10-02",null,43175.46,"2021-10-22",null,null,null,null,null,null,1]
[null,null,null,null,null,null,null,null,null,null,null,"2021-11-01",null,32387.15,"2021-11-09",null,null,null,null,null,null,1]
[null,null,null,null,null,null,null,null,null,null,null,"2021-11-01",null,32387.15,"2021-11-09",null,null,null,null,null,null,1]
[null,null,null,null,null,null,null,null,null,null,null,"2021-10-31",null,23119.3,"2021-11-22",null,null,null,null,null,null,1]
[null,null,null,null,null,null,null,null,null,null,null,"2021-11-02",null,33223.040000000001,"2021-11-22",null,null,null,null,null,null,1]
[null,null,null,null,null,null,null,null,null,null,null,"2021-12-01",null,24933.32,"2021-12-01",null,null,null,null,null,null,1]
[null,null,null,null,null,null,null,null,null,null,null,"2021-11-30",null,42413.91,"2021-12-20",null,null,null,null,null,null,1]
[null,null,null,null,null,null,null,null,null,null,null,"2021-11-30",null,43213.94,"2021-12-20",null,null,null,null,null,null,1]
[null,null,null,null,null,null,null,null,null,null,null,null,null,null,null,null,null,null,null,null,null,1]
[null,null,null,null,null,null,null,null,null,null,null,null,null,null,null,null,null,null,null,null,null,1]
[null,null,null,null,null,null,null,null,null,null,null,null,null,null,null,null,null,null,null,null,null,1]
[2,"32353014442 20 000019","92500000000000000247","91","2020-12-22","Поставка теплоэнергии и горяч.воды",1694072.06,{"$f":"IF(V44 = 2, G44 + SUM(Q44:Q69) - SUM(R44:R69) - SUM(N44:N69) - T44,0)","v":-9.0949470177292824E-12},2312054894,"АО АТЭК","Поставка эосуществляется постоянно, в течение срока действия контракта","2021-01-31","не позднее 30 дней с момента подписания док.на опл.",41557.07,"2021-02-20",null,null,null,null,4422.24,null,2]
[null,null,null,null,null,null,null,null,null,null,null,"2021-01-31",null,200000,"2021-03-16",null,null,null,null,null,null,2]
[null,null,null,null,null,null,null,null,null,null,null,"2021-01-31",null,46140.23,"2021-04-01",null,null,null,null,null,null,2]
[null,null,null,null,null,null,null,null,null,null,null,"2021-01-31",null,3859.77,"02.0.2021",null,null,null,null,null,null,2]
[null,null,null,null,null,null,null,null,null,null,null,"2021-01-31",null,100000,"2021-04-21",null,null,null,null,null,null,2]
[null,null,null,null,null,null,null,null,null,null,null,"2021-02-28",null,41622.400000000001,"2021-04-26",null,null,null,null,null,null,2]
[null,null,null,null,null,null,null,null,null,null,null,"2021-02-28",null,294229.45,"2021-04-29",null,null,null,null,null,null,2]
[null,null,null,null,null,null,null,null,null,null,null,"2021-02-28",null,5770.55,"2021-04-29",null,null,null,null,null,null,2]
[null,null,null,null,null,null,null,null,null,null,null,"2021-03-31",null,5066.3900000000003,"2021-04-29",null,null,null,null,null,null,2]
[null,null,null,null,null,null,null,null,null,null,null,"2021-03-31",null,274478,"2021-04-29",null,null,null,null,null,null,2]
[null,null,null,null,null,null,null,null,null,null,null,"2021-04-30",null,5611.55,"2021-06-18",null,null,null,null,null,null,2]
[null,null,null,null,null,null,null,null,null,null,null,"2021-04-30",null,190994.88,"2021-06-18",null,null,null,null,null,null,2]
[null,null,null,null,null,null,null,null,null,null,null,"2021-05-31",null,2792.72,"2021-06-18",null,null,null,null,null,null,2]
[null,null,null,null,null,null,null,null,null,null,null,"2021-06-30",null,58.99,"2021-07-23",null,null,null,null,null,null,2]
[null,null,null,null,null,null,null,null,null,null,null,"2021-09-30",null,2934.11,"2021-10-15",null,null,null,null,null,null,2]
[null,null,null,null,null,null,null,null,null,null,null,"2021-10-06",null,868.65,"2021-10-15",null,null,null,null,null,null,2]
[null,null,null,null,null,null,null,null,null,null,null,"2021-11-10",null,978.59,"2021-11-22",null,null,null,null,null,null,2]
[null,null,null,null,null,null,null,null,null,null,null,"2021-11-22",null,8260.49,"2021-11-22",null,null,null,null,null,null,2]
[null,null,null,null,null,null,null,null,null,null,null,"2021-11-22",null,33041.980000000003,"2021-11-22",null,null,null,null,null,null,2]
[null,null,null,null,null,null,null,null,null,null,null,"2021-11-22",null,3045.33,"2021-11-22",null,null,null,null,null,null,2]
[null,null,null,null,null,null,null,null,null,null,null,"22.122021",null,199999.92,"2021-12-22",null,null,null,null,null,null,2]
[null,null,null,null,null,null,null,null,null,null,null,"2021-11-30",null,225100.4,"2021-12-14",null,null,null,null,null,null,2]
[null,null,null,null,null,null,null,null,null,null,null,"2021-11-30",null,3238.35,"2021-12-14",null,null,null,null,null,null,2]
[null,null,null,null,null,null,null,null,null,null,null,null,null,null,null,null,null,null,null,null,null,2]
[null,null,null,null,null,null,null,null,null,null,null,null,null,null,null,null,null,null,null,null,null,2]
[null,null,null,null,null,null,null,null,null,null,null,null,null,null,null,null,null,null,null,null,null,2]
[3,"32353014442 20 000017","92500000000000000247","1","2020-12-22","Поставка водоснабжения и водоотведения",250676.07,{"$f":"IF(V70 = 3, G70 + SUM(Q70:Q81) - SUM(R70:R81) - SUM(N70:N81) - T70,0)","v":2.9103830456733704E-11},2353246210,"ООО\"Коммунальник \"","Поставка эосуществляется постоянно, в течение срока действия контракта","2021-01-20","не позднее 30 дней с момента подписания док.на опл.",8765.84,"2021-02-04",null,null,null,"1 от 27.12.2011",155035.09,null,3]
[null,null,null,null,null,null,null,null,null,null,null,"2021-02-20",null,8914.7800000000007,"2021-03-04",null,null,null,null,null,null,3]
[null,null,null,null,null,null,null,null,null,null,null,"2021-03-19",null,13878.64,"2021-06-18",null,null,null,null,null,null,3]
[null,null,null,null,null,null,null,null,null,null,null,"2021-04-20",null,11536.62,"2021-06-18",null,null,null,null,null,null,3]
[null,null,null,null,null,null,null,null,null,null,null,"2021-05-31",null,6747.42,"2021-06-18",null,null,null,null,null,null,3]
[null,null,null,null,null,null,null,null,null,null,null,"2021-06-30",null,5922.22,"2021-09-21",null,null,null,null,null,null,3]
[null,null,null,null,null,null,null,null,null,null,null,"2021-07-31",null,3135.61,"2021-09-21",null,null,null,null,null,null,3]
[null,null,null,null,null,null,null,null,null,null,null,"2021-08-31",null,1772.32,"2021-09-21",null,null,null,null,null,null,3]
[null,null,null,null,null,null,null,null,null,null,null,"2021-09-30",null,9199.16,"2021-10-18",null,null,null,null,null,null,3]
[null,null,null,null,null,null,null,null,null,null,null,"2021-11-22",null,9705.5400000000009,"2021-10-31",null,null,null,null,null,null,3]
[null,null,null,null,null,null,null,null,null,null,null,"2021-12-21",null,6593.55,"2011-12-27",null,null,null,null,null,null,3]
[null,null,null,null,null,null,null,null,null,null,null,"30.11.201",null,9469.2800000000007,"2021-12-14",null,null,null,null,null,null,3]
[4,null,"92500000000000000244","32","2021-04-09","учебники",761511.53,{"$f":"IF(V82 = 4, G82 + SUM(Q82:Q84) - SUM(R82:R84) - SUM(N82:N84) - T82,0)","v":-1000},7715995942,"АО \"Издательство Просвещение\"","до 10 августа 2021","2021-05-15","Не позднее 30 календарных дней с момента подписания Заказчиком и Подрядчиком акта приема-сдачи и предоставленного Подрядчиком документа на оплату",718417.15,"2021-07-23",null,null,null,null,null,null,4]
[null,null,null,null,null,null,null,null,null,null,null,"2021-06-20",null,43922.23,"2021-07-23",null,null,null,null,null,null,4]
[null,null,null,null,null,null,null,null,null,null,null,"2021-08-05",null,172.15,"2021-09-15",null,null,null,null,null,null,4]
[5,null,"92500000000000000244","8","2021-04-09","учебники",41570,{"$f":"IF(V85 = 5, G85 + SUM(Q85:Q85) - SUM(R85:R85) - SUM(N85:N85) - T85,0)","v":0},2310047193,"ООО \"ОИПЦ \"Перспективы образования\"","до 10 августа 2021","2021-06-15","Не позднее 30 календарных дней с момента подписания Заказчиком и Подрядчиком акта приема-сдачи и предоставленного Подрядчиком документа на оплату",41570,"2021-07-23",null,null,null,null,null,null,5]
[null,null,null,null,null,null,null,null,null,null,null,null,null,null,null,null,null,null,null,null,null,6]

{"sheet":"Состоявшиеся аукционы","index":4,"n_rows":41,"n_cols":30,"rows_kept":41,"cut":false,"hidden":false,"merged":[[16,28,39,28],[16,3,39,3],[16,4,39,4],[16,5,39,5],[16,6,39,6],[16,7,39,7],[16,8,39,8],[16,9,39,9],[16,10,39,10],[16,11,39,11],[16,12,39,12],[16,13,39,13],[16,14,39,14],[16,15,39,15],[16,16,39,16],[16,17,39,17],[16,0,39,0],[16,20,39,20],[16,26,39,26],[16,1,39,1],[16,27,39,27],[16,2,39,2],[16,18,39,18],[8,27,15,27],[8,2,15,2],[8,28,15,28],[8,3,15,3],[8,4,15,4],[8,5,15,5],[8,6,15,6],[8,7,15,7],[8,8,15,8],[8,9,15,9],[8,10,15,10],[8,11,15,11],[8,12,15,12],[8,13,15,13],[1,4,1,5],[1,14,1,15],[1,24,1,26],[1,19,1,20],[8,17,15,17],[8,18,15,18],[8,26,15,26],[8,0,15,0],[8,20,15,20],[8,1,15,1],[8,16,15,16],[8,14,15,14],[8,15,15,15]]}
[]
[null,null,null,null,"Сумма начальных (максимальных) цен контрактов",null,{"$f":"SUM(G9:G9999)","v":2009834.73},null,null,null,null,null,null,null,"Сумма заключенных контрактов",null,{"$f":"SUM(Q9:Q9999)","v":1799547.99},null,null,"Сумма средств выплаченных по контрактам",null,{"$f":"SUM(V9:V9999)","v":1667596.6199999999},null,null,"Общая сумма расторжений по контрактам/договорам",null,null,{"$f":"SUM(AB9:AB9999)","v":0}]
[]
[]
[]
["№ п/п","Наименование муниципальной программы, национального или регионального проекта","ИКЗ (Идентификационный код закупки)","Код бюджетной классификации","№ извещения","Объект закупки","Н(М)ЦК","Экономия","Количество поданных заявок","Количество заявок признанные несоответствующими","СМП и СОНО","№ в реестре контрактов","№ контракта","Дата заключения","ИНН поставщика (подрядчика, исполнителя) ","Поставщик (подрядчик, исполнитель)","Цена контракта","Остаток по контракту","Сроки поставки товара (оказания услуги, выполнения работы), согласно контракта","Фактическая дата поставки товара (оказания услуги, выполнения работы) и (или) предоставление документов на оплату и подписание документов о приемке","Сроки оплаты согласно контракта","Сумма согласно документа об исполнении контракта заказчиком","Фактическая дата оплаты","Изменение контракта (№, дата)","Изменение контракта (увеличение цены контракта в рублях)","Изменение контракта (уменьшение цены контракта в рублях)","Расторжение контракта (№, дата)","Сумма расторжения","Примечание"]
["1","2","3","4","5","6","7","8","9","10","11","12","13","14","15","16","17","18","19","20","21","22","23","24","25","26","27","28","29"]
["1",null,"193235301125823530100103000010000244 ","902 0113 1210310010 244","0818300019919000194","Поставка картриджа и тонер-картриджей ",15500.01,{"$f":"G8-Q8","v":6725},6,0,"Нет","3235301125819000079","Ф.2019.412162","2019-07-09","3443923035"," ООО \"АНАЛИТИК ЦЕНТР\" ",8775.01,{"$f":"Q8-V8","v":0},"В течение 20 рабочих дней со дня заключения сторонами муниципального контракта","2019-07-31","Не позднее 30 календарных дней с момента подписания Заказчиком документа о приемке выполненных работ и представленного Подрядчиком документа на оплату",8775.01,"2019-08-19",null,null,null,null,null,"Пример"]
[1,null,"20 32353014442235301001 0026 001 8010 244",null,"0818300019920000293 ","Охрана январь-июнь 2021 года",351864,{"$f":"IF(AD9 = 1, G9 - Q9,0)","v":82688.039999999979},6,null,"да","32353014442 20 000020","№0818300019920000293","2020-12-29",null,"ООО \"ЧОО Легион\"",269175.96000000002,{"$f":"IF(AD9 = 1, Q9 + SUM(Y9:Y16) - SUM(Z9:Z16) - SUM(V9:V16) - AB9,0)","v":0},"ежедневно","2021-01-31","Не позднее 15  рабочих дней с момента подписания Заказчиком документа о приемке выполненных работ и представленного Подрядчиком документа на оплату",46101.96,"2021-02-04",null,null,null,null,null,null,1]
[null,null,null,null,null,null,null,null,null,null,null,null,null,null,null,null,null,null,null,"2021-02-28",null,41640.480000000003,"2021-03-04",null,null,null,null,null,null,1]
[null,null,null,null,null,null,null,null,null,null,null,null,null,null,null,null,null,null,null,"2021-03-31",null,46101.96,"2021-04-13",null,null,null,null,null,null,1]
[null,null,null,null,null,null,null,null,null,null,null,null,null,null,null,null,null,null,null,"2021-04-30",null,44614.8,"2021-05-18",null,null,null,null,null,null,1]
[null,null,null,null,null,null,null,null,null,null,null,null,null,null,null,null,null,null,null,"2021-05-31",null,46101.96,"2021-06-02",null,null,null,null,null,null,1]
[null,null,null,null,null,null,null,null,null,null,null,null,null,null,null,null,null,null,null,"2021-06-30",null,44614.8,"2021-07-08",null,null,null,null,null,null,1]
[null,null,null,null,null,null,null,null,null,null,null,null,null,null,null,null,null,null,null,null,null,null,null,null,null,null,null,null,null,1]
[null,null,null,null,null,null,null,null,null,null,null,null,null,null,null,null,null,null,null,null,null,null,null,null,null,null,null,null,null,1]
[2,null,"21 32353014442235301001 0011 001 5629 244","92500000000000000244","0818300019921000204 ","Оказание услуги по организации питания учащихся муниципальных бюджетных общеобразовательных учреждений средних общеобразовательных школ муниципального образования Тимашевский район.",1657970.73,{"$f":"IF(AD17 = 2, G17 - Q17,0)","v":127598.69999999995},2,null,"да","32353014442 21 000003","№0818300019921000204","2021-08-30","2353020735","ООО«Тимашевское предприятие розничной торговли райпо»",1530372.03,{"$f":"IF(AD17 = 2, Q17 + SUM(Y17:Y40) - SUM(Z17:Z40) - SUM(V17:V40) - AB17,0)","v":131951.37000000011},null,"2021-09-30",null,13657,"2021-10-14",null,null,null,null,null,null,2]
[null,null,null,null,null,null,null,null,null,null,null,null,null,null,null,null,null,null,null,"2021-09-30",null,29108,"2021-10-14",null,null,null,null,null,null,2]
[null,null,null,null,null,null,null,null,null,null,null,null,null,null,null,null,null,null,null,"2021-09-30",null,90235.3,"2021-10-14",null,null,null,null,null,null,2]
[null,null,null,null,null,null,null,null,null,null,null,null,null,null,null,null,null,null,null,"2021-09-30",null,5759.82,"2021-10-14",null,null,null,null,null,null,2]
[null,null,null,null,null,null,null,null,null,null,null,null,null,null,null,null,null,null,null,"2021-09-24",null,230712.58,"2021-10-14",null,null,null,null,null,null,2]
[null,null,null,null,null,null,null,null,null,null,null,null,null,null,null,null,null,null,null,"2021-09-24",null,14726.64,"2021-10-14",null,null,null,null,null,null,2]
[null,null,null,null,null,null,null,null,null,null,null,null,null,null,null,null,null,null,null,"2021-09-24",null,74423,"2021-10-14",null,null,null,null,null,null,2]
[null,null,null,null,null,null,null,null,null,null,null,null,null,null,null,null,null,null,null,"2021-10-08",null,134822.85,"2021-10-25",null,null,null,null,null,null,2]
[null,null,null,null,null,null,null,null,null,null,null,null,null,null,null,null,null,null,null,"2021-10-08",null,8605.89,"2021-10-25",null,null,null,null,null,null,2]
[null,null,null,null,null,null,null,null,null,null,null,null,null,null,null,null,null,null,null,"2021-10-08",null,43491,"2021-10-25",null,null,null,null,null,null,2]
[null,null,null,null,null,null,null,null,null,null,null,null,null,null,null,null,null,null,null,"2021-09-10",null,62719,"2021-09-28",null,null,null,null,null,null,2]
[null,null,null,null,null,null,null,null,null,null,null,null,null,null,null,null,null,null,null,"2021-09-10",null,194429.98,"2021-09-21",null,null,null,null,null,null,2]
[null,null,null,null,null,null,null,null,null,null,null,null,null,null,null,null,null,null,null,"2021-09-10",null,12410.68,"2021-09-21",null,null,null,null,null,null,2]
[null,null,null,null,null,null,null,null,null,null,null,null,null,null,null,null,null,null,null,"2021-10-22",null,222230.93,"2021-11-11",null,null,null,null,null,null,2]
[null,null,null,null,null,null,null,null,null,null,null,null,null,null,null,null,null,null,null,"2021-10-22",null,14185.25,"2021-11-11",null,null,null,null,null,null,2]
[null,null,null,null,null,null,null,null,null,null,null,null,null,null,null,null,null,null,null,"2021-10-22",null,71687,"2021-11-11",null,null,null,null,null,null,2]
[null,null,null,null,null,null,null,null,null,null,null,null,null,null,null,null,null,null,null,"2021-10-29",null,7477.99,"2021-11-11",null,null,null,null,null,null,2]
[null,null,null,null,null,null,null,null,null,null,null,null,null,null,null,null,null,null,null,"2021-10-29",null,117152.75,"2021-11-11",null,null,null,null,null,null,2]
[null,null,null,null,null,null,null,null,null,null,null,null,null,null,null,null,null,null,null,"2021-10-29",null,37791,"2021-11-16",null,null,null,null,null,null,2]
[null,null,null,null,null,null,null,null,null,null,null,null,null,null,null,null,null,null,null,"2021-10-29",null,12794,"2021-11-16",null,null,null,null,null,null,2]
[null,null,null,null,null,null,null,null,null,null,null,null,null,null,null,null,null,null,null,null,null,null,null,null,null,null,null,null,null,2]
[null,null,null,null,null,null,null,null,null,null,null,null,null,null,null,null,null,null,null,null,null,null,null,null,null,null,null,null,null,2]
[null,null,null,null,null,null,null,null,null,null,null,null,null,null,null,null,null,null,null,null,null,null,null,null,null,null,null,null,null,2]
[null,null,null,null,null,null,null,null,null,null,null,null,null,null,null,null,null,null,null,null,null,null,null,null,null,null,null,null,null,2]
[null,null,null,null,null,null,null,null,null,null,null,null,null,null,null,null,null,null,null,null,null,null,null,null,null,null,null,null,null,3]

{"sheet":"Несостоявшиеся аукционы","index":5,"n_rows":9,"n_cols":30,"rows_kept":9,"cut":false,"hidden":false,"merged":[[1,4,1,5],[1,14,1,15],[1,24,1,26],[1,19,1,20]]}
[]
[null,null,null,null,"Сумма начальных (максимальных) цен контрактов",null,{"$f":"SUM(G9:G9999)","v":0},null,null,null,null,null,null,null,"Сумма заключенных контрактов",null,{"$f":"SUM(Q9:Q9999)","v":0},null,null,"Сумма средств выплаченных по контрактам",null,{"$f":"SUM(V9:V9999)","v":0},null,null,"Общая сумма расторжений по контрактам/договорам",null,null,{"$f":"SUM(AB9:AB9999)","v":0}]
[]
[]
[]
["№ п/п","Наименование муниципальной программы, национального или регионального проекта","ИКЗ (Идентификационный код закупки)","Код бюджетной классификации","№ извещения","Объект закупки","Н(М)ЦК","Экономия","Количество поданных заявок","Количество заявок признанные несоответствующими","СМП и СОНО","№ в реестре контрактов","№ контракта","Дата заключения","ИНН поставщика (подрядчика, исполнителя) ","Поставщик (подрядчик, исполнитель)","Цена контракта (Объем финансового обеспечения подлежащий к оплате в текущем фин. году)","Остаток по контракту","Сроки поставки товара (оказания услуги, выполнения работы), согласно контракта","Фактическая дата поставки товара (оказания услуги, выполнения работы) и (или) предоставление документов на оплату и подписание документов о приемке","Сроки оплаты согласно контракта","Сумма согласно документа об исполнении контракта заказчиком","Фактическая дата оплаты","Изменение контракта (№, дата)","Изменение контракта (увеличение цены контракта в рублях)","Изменение контракта (уменьшение цены контракта в рублях)","Расторжение контракта (№, дата)","Сумма расторжения","Примечание"]
["1","2","3","4","5","6","7","8","9","10","11","12","13","14","15","16","17","18","19","20","21","22","23","24","25","26","27","28","29"]
["1",null,"193235301125823530100103000010000244 ","902 0113 1210310010 244","0818300019919000194","Поставка картриджа и тонер-картриджей ",15500.01,{"$f":"G8-Q8","v":6725},6,0,"Нет","3235301125819000079","Ф.2019.412162","2019-07-09","3443923035"," ООО \"АНАЛИТИК ЦЕНТР\" ",8775.01,{"$f":"Q8-V8","v":0},"В течение 20 рабочих дней со дня заключения сторонами муниципального контракта","2019-07-31","Не позднее 30 календарных дней с момента подписания Заказчиком документа о приемке выполненных работ и представленного Подрядчиком документа на оплату",8775.01,"2019-08-19",null,null,null,null,null,"Пример"]
[null,null,null,null,null,null,null,null,null,null,null,null,null,null,null,null,null,null,null,null,null,null,null,null,null,null,null,null,null,2]

{"sheet":"Иные конкурентные закупки","index":6,"n_rows":9,"n_cols":30,"rows_kept":9,"cut":false,"hidden":false,"merged":[[3,15,3,17],[1,4,1,5],[1,14,1,15],[1,24,1,26],[1,19,1,20]]}
[]
[null,null,null,null,"Сумма начальных (максимальных) цен контрактов",null,{"$f":"SUM(G9:G9999)","v":0},null,null,null,null,null,null,null,"Сумма заключенных контрактов",null,{"$f":"SUM(Q9:Q9999)","v":0},null,null,"Сумма средств выплаченных по контрактам",null,{"$f":"SUM(V9:V9999)","v":0},null,null,"Общая сумма расторжений по контрактам/договорам",null,null,{"$f":"SUM(AB9:AB9999)","v":0}]
[]
[]
[]
["№ п/п","Наименование муниципальной программы, национального или регионального проекта","ИКЗ (Идентификационный код закупки)","Код бюджетной классификации","№ извещения","Объект закупки","Н(М)ЦК","Экономия","Количество поданных заявок","Количество заявок признанные несоответствующими","СМП и СОНО","№ в реестре контрактов","№ контракта","Дата заключения","ИНН поставщика (подрядчика, исполнителя) ","Поставщик (подрядчик, исполнитель)","Цена контракта","Остаток по контракту","Сроки поставки товара (оказания услуги, выполнения работы), согласно контракта","Фактическая дата поставки товара (оказания услуги, выполнения работы) и (или) предоставление документов на оплату и подписание документов о приемке","Сроки оплаты согласно контракта","Сумма согласно документа об исполнении контракта заказчиком","Фактическая дата оплаты","Изменение контракта (№, дата)","Изменение контракта (увеличение цены контракта в рублях)","Изменение контракта (уменьшение цены контракта в рублях)","Расторжение контракта (№, дата)","Сумма расторжения","Примечание"]
[1,2,3,4,5,6,7,8,9,10,11,12,13,14,15,16,17,18,19,20,21,22,23,24,25,26,27,28,29]
["1",null,"193235301125823530100103000010000244 ","902 0113 1210310010 244","0818300019919000194","Поставка картриджа и тонер-картриджей ",15500.01,{"$f":"G8-Q8","v":6725},6,0,"Нет","3235301125819000079","Ф.2019.412162","2019-07-09","3443923035"," ООО \"АНАЛИТИК ЦЕНТР\" ",8775.01,{"$f":"Q8-V8","v":0},"В течение 20 рабочих дней со дня заключения сторонами муниципального контракта","2019-07-31","Не позднее 30 календарных дней с момента подписания Заказчиком документа о приемке выполненных работ и представленного Подрядчиком документа на оплату",8775.01,"2019-08-19",null,null,null,null,null,"Пример"]
[null,null,null,null,null,null,null,null,null,null,null,null,null,null,null,null,null,null,null,null,null,null,null,null,null,null,null,null,null,2]

{"sheet":"Настройки","index":7,"n_rows":17,"n_cols":11,"rows_kept":17,"cut":false,"hidden":true,"merged":[[15,3,16,3],[0,3,1,3],[3,3,4,3],[6,3,7,3],[9,3,10,3],[12,3,13,3]]}
[123,60,9,"Ед. поставщик п.4 ч.1 ",null,"Index","Index","Index","Index","Index","Index"]
["TekStrokaP4","TekNomerP4","NachStrokaP4",null,null,61,63,5,2,0,0]
[null,null,null,null,null,"Index+1","Index+1","Index+1","Index+1","Index+1","Index+1"]
[215,54,9,"Ед. поставщик п.5 ч.1 ",null,62,64,6,3,0,0]
["TekStrokaP5","TekNomerP5","NachStrokaP5"]
[]
[85,5,9,"Ед.поставщик за искл. п.4,5 ч.1"]
["TekStrokaSt93","TekNomerSt93","NachStrokaSt93"]
[]
[40,2,9,"Состоявшиеся аукционы"]
["TekStrokaSEA","TekNomerSEA","NachStrokaSEA"]
[]
[8,0,9,"Несостоявшиеся аукционы"]
["TekStrokaNEA","TekNomerNEA","NachStrokaNEA"]
[]
[8,0,9,"Иные конкурентные закупки"]
["TekStrokaIKZ","TekNomerIKZ","NachStrokaIKZ"]